Workbook

Sheet Calculator
B2: =IF($C$5=Trans!$A$6,Trans!A7, IF($C$5=Trans!$B$6,Trans!B7, IF($C$5=Trans!$C$6,Trans!C7, IF($C$5=Trans!$D$6,Trans!D7,Trans!E7)))) -> Bleisäurebatterie | M2: =IF($C$5=Trans!$A$6,Trans!A86, IF($C$5=Trans!$B$6,Trans!B86, IF($C$5=Trans!$C$6,Trans!C86, IF($C$5=Trans!$D$6,Trans!D86,Trans!E86)))) -> Anwendungsmatrix
B3: =IF($C$5=Trans!$A$6,Trans!A8, IF($C$5=Trans!$B$6,Trans!B8, IF($C$5=Trans!$C$6,Trans!C8, IF($C$5=Trans!$D$6,Trans!D8,Trans!E8)))) -> Leitfaden zur Verlängerung der Batterielebensdauer | M3: =IF($C$5=Trans!$A$6,Trans!A87, IF($C$5=Trans!$B$6,Trans!B87, IF($C$5=Trans!$C$6,Trans!C87, IF($C$5=Trans!$D$6,Trans!D87,Trans!E87)))) -> In den Matrixkriterien „Arbeitszyklus“ und im Rechner „Ergebnis“ wählen. | O3: =IF($C$5=Trans!$A$6,Trans!A95, IF($C$5=Trans!$B$6,Trans!B95, IF($C$5=Trans!$C$6,Trans!C95, IF($C$5=Trans!$D$6,Trans!D95,Trans!E95)))) -> WELCHE LASTEN WERDEN BEFÖRDERT?
O4: =IF($C$5=Trans!$A$6,Trans!A96, IF($C$5=Trans!$B$6,Trans!B96, IF($C$5=Trans!$C$6,Trans!C96, IF($C$5=Trans!$D$6,Trans!D96,Trans!E96)))) -> Normalerweise leichte Lasten | P4: =IF($C$5=Trans!$A$6,Trans!A97, IF($C$5=Trans!$B$6,Trans!B97, IF($C$5=Trans!$C$6,Trans!C97, IF($C$5=Trans!$D$6,Trans!D97,Trans!E97)))) -> Leichte bis mittelschwere Lasten | Q4: =IF($C$5=Trans!$A$6,Trans!A98, IF($C$5=Trans!$B$6,Trans!B98, IF($C$5=Trans!$C$6,Trans!C98, IF($C$5=Trans!$D$6,Trans!D98,Trans!E98)))) -> Maximallasten
C5: Deutsch
O6: =IF($C$5=Trans!$A$6,Trans!A99, IF($C$5=Trans!$B$6,Trans!B99, IF($C$5=Trans!$C$6,Trans!C99, IF($C$5=Trans!$D$6,Trans!D99,Trans!E99)))) -> Normalerweise weniger als 50 % der Maximallast – gelegentlich Maximallasten | P6: =IF($C$5=Trans!$A$6,Trans!A100, IF($C$5=Trans!$B$6,Trans!B100, IF($C$5=Trans!$C$6,Trans!C100, IF($C$5=Trans!$D$6,Trans!D100,Trans!E100)))) -> Normalerweise weniger als 75 % der Maximallast – gelegentlich Maximallasten | Q6: =IF($C$5=Trans!$A$6,Trans!A101, IF($C$5=Trans!$B$6,Trans!B101, IF($C$5=Trans!$C$6,Trans!C101, IF($C$5=Trans!$D$6,Trans!D101,Trans!E101)))) -> Häufiges Handling von Lasten bei oder nahe der Maximallast
B7: =IF($C$5=Trans!$A$6,Trans!A10, IF($C$5=Trans!$B$6,Trans!B10, IF($C$5=Trans!$C$6,Trans!C10, IF($C$5=Trans!$D$6,Trans!D10,Trans!E10)))) -> Auswahl Stapler, Batterie und Anwendung
B9: =IF($C$5=Trans!$A$6,Trans!A11, IF($C$5=Trans!$B$6,Trans!B11, IF($C$5=Trans!$C$6,Trans!C11, IF($C$5=Trans!$D$6,Trans!D11,Trans!E11)))) -> Stapler | D9: =IF($C$5=Trans!$A$6,Trans!A32, IF($C$5=Trans!$B$6,Trans!B32, IF($C$5=Trans!$C$6,Trans!C32, IF($C$5=Trans!$D$6,Trans!D32,Trans!E32)))) -> Auswahl | H9: Truck | I9: =C9 -> 0 | J9: Select | M9: =IF($C$5=Trans!$A$6,Trans!A88, IF($C$5=Trans!$B$6,Trans!B88, IF($C$5=Trans!$C$6,Trans!C88, IF($C$5=Trans!$D$6,Trans!D88,Trans!E88)))) -> FAHR- UND/ODER HYDRAULIKBETRIEB?
B10: =IF($C$5=Trans!$A$6,Trans!A13, IF($C$5=Trans!$B$6,Trans!B13, IF($C$5=Trans!$C$6,Trans!C13, IF($C$5=Trans!$D$6,Trans!D13,Trans!E13)))) -> Batterie | D10: =IF($C$5=Trans!$A$6,Trans!A33, IF($C$5=Trans!$B$6,Trans!B33, IF($C$5=Trans!$C$6,Trans!C33, IF($C$5=Trans!$D$6,Trans!D33,Trans!E33)))) -> Auswahl (Präfix ND = nicht DIN) | F10: =IF(C10="", "INC", "OK") -> INC | H10: Battery | I10: =C10 -> 0 | J10: Select (Prefix ND = Non DIN)
M11: =IF($C$5=Trans!$A$6,Trans!A89, IF($C$5=Trans!$B$6,Trans!B89, IF($C$5=Trans!$C$6,Trans!C89, IF($C$5=Trans!$D$6,Trans!D89,Trans!E89)))) -> Zumeist Stapeln und Beladen mit deutlich mehr Fahr- als Hydraulikbetrieb | N11: =IF($C$5=Trans!$A$6,Trans!A92, IF($C$5=Trans!$B$6,Trans!B92, IF($C$5=Trans!$C$6,Trans!C92, IF($C$5=Trans!$D$6,Trans!D92,Trans!E92)))) -> Handling und Stapeln in Bodennähe mit Hubhöhen unterhalb von 3 Metern | O11: =IF($C$5=Trans!$A$6,Trans!A102, IF($C$5=Trans!$B$6,Trans!B102, IF($C$5=Trans!$C$6,Trans!C102, IF($C$5=Trans!$D$6,Trans!D102,Trans!E102)))) -> LEICHTE BEANSPRUCHUNG | P11: =IF($C$5=Trans!$A$6,Trans!A103, IF($C$5=Trans!$B$6,Trans!B103, IF($C$5=Trans!$C$6,Trans!C103, IF($C$5=Trans!$D$6,Trans!D103,Trans!E103)))) -> MITTLERE BEANSPRUCHUNG | Q11: =IF($C$5=Trans!$A$6,Trans!A104, IF($C$5=Trans!$B$6,Trans!B104, IF($C$5=Trans!$C$6,Trans!C104, IF($C$5=Trans!$D$6,Trans!D104,Trans!E104)))) -> STARKE BEANSPRUCHUNG
B12: =IF($C$5=Trans!$A$6,Trans!A111, IF($C$5=Trans!$B$6,Trans!B111, IF($C$5=Trans!$C$6,Trans!C111, IF($C$5=Trans!$D$6,Trans!D111,Trans!E111)))) -> Betriebsstunden pro Tag | D12: =IF($C$5=Trans!$A$6,Trans!A32, IF($C$5=Trans!$B$6,Trans!B32, IF($C$5=Trans!$C$6,Trans!C32, IF($C$5=Trans!$D$6,Trans!D32,Trans!E32)))) -> Auswahl
B13: =IF($C$5=Trans!$A$6,Trans!A112, IF($C$5=Trans!$B$6,Trans!B112, IF($C$5=Trans!$C$6,Trans!C112, IF($C$5=Trans!$D$6,Trans!D112,Trans!E112)))) -> Pausen- und Staplerstillstandzeiten (Stunden) | D13: =IF($C$5=Trans!$A$6,Trans!A32, IF($C$5=Trans!$B$6,Trans!B32, IF($C$5=Trans!$C$6,Trans!C32, IF($C$5=Trans!$D$6,Trans!D32,Trans!E32)))) -> Auswahl
B14: =IF($C$5=Trans!$A$6,Trans!A15, IF($C$5=Trans!$B$6,Trans!B15, IF($C$5=Trans!$C$6,Trans!C15, IF($C$5=Trans!$D$6,Trans!D15,Trans!E15)))) -> Staplernutzung | C14: =IFERROR((C12-C13)/C12,"-") -> - | H14: Truck Utilisation / Shift | I14: =C14 -> - | J14: Select
B16: =IF($C$5=Trans!$A$6,Trans!A80, IF($C$5=Trans!$B$6,Trans!B80, IF($C$5=Trans!$C$6,Trans!C80, IF($C$5=Trans!$D$6,Trans!D80,Trans!E80)))) -> Arbeitszyklus | D16: =IF($C$5=Trans!$A$6,Trans!A34, IF($C$5=Trans!$B$6,Trans!B34, IF($C$5=Trans!$C$6,Trans!C34, IF($C$5=Trans!$D$6,Trans!D34,Trans!E34)))) -> Auswahl auf Basis der Anwendungsmatrix | F16: =IF(C16="", "INC", "OK") -> INC | H16: Duty Cycle | I16: =IF(F16="INC", "-", IF(OR(C16=Trans!A81,C16=Trans!B81,C16=Trans!C81,C16=Trans!D81,C16=Trans!E81),Trans!A81,IF(OR(C16=Trans!A82,C16=Trans!B82,C16=Trans!C82,C16=Trans!D82,C16=Trans!E82),Trans!A82,IF(OR(C16=Trans!A83,C16=Trans!B83,C16=Trans!C83,C16=Trans!D83,C16=Trans!E83),Trans!A83,Trans!A84)))) -> - | J16: Select based on application matrix
B18: =IF($C$5=Trans!$A$6,Trans!A20, IF($C$5=Trans!$B$6,Trans!B20, IF($C$5=Trans!$C$6,Trans!C20, IF($C$5=Trans!$D$6,Trans!D20,Trans!E20)))) -> Hubgerüsttyp | D18: =IF($C$5=Trans!$A$6,Trans!A32, IF($C$5=Trans!$B$6,Trans!B32, IF($C$5=Trans!$C$6,Trans!C32, IF($C$5=Trans!$D$6,Trans!D32,Trans!E32)))) -> Auswahl | F18: =IF(C18="", "INC", "OK") -> INC | H18: Mast Type | I18: =IF(F18="INC", "-", C18) -> - | J18: Select
B20: =IF($C$5=Trans!$A$6,Trans!A21, IF($C$5=Trans!$B$6,Trans!B21, IF($C$5=Trans!$C$6,Trans!C21, IF($C$5=Trans!$D$6,Trans!D21,Trans!E21)))) -> Anbaugerät | D20: =IF($C$5=Trans!$A$6,Trans!A32, IF($C$5=Trans!$B$6,Trans!B32, IF($C$5=Trans!$C$6,Trans!C32, IF($C$5=Trans!$D$6,Trans!D32,Trans!E32)))) -> Auswahl | F20: INC | H20: Attachment | I20: =IF(F20="INC", "-", IF(OR(C20=Trans!A39,C20=Trans!B39,C20=Trans!C39,C20=Trans!D39,C20=Trans!E39),Trans!A39,Trans!A40)) -> - | J20: Select
B21: =IF($C$5=Trans!$A$6,Trans!A22, IF($C$5=Trans!$B$6,Trans!B22, IF($C$5=Trans!$C$6,Trans!C22, IF($C$5=Trans!$D$6,Trans!D22,Trans!E22)))) -> Seitenschub/Gabelzinkenverstellung | D21: =IF($C$5=Trans!$A$6,Trans!A32, IF($C$5=Trans!$B$6,Trans!B32, IF($C$5=Trans!$C$6,Trans!C32, IF($C$5=Trans!$D$6,Trans!D32,Trans!E32)))) -> Auswahl | F21: INC | H21: Side shift/Fork Positioner | I21: =IF(F21="INC", "-", IF(OR(C21=Trans!A53,C21=Trans!B53,C21=Trans!C53,C21=Trans!D53,C21=Trans!E53),Trans!A53,IF(OR(C21=Trans!A54,C21=Trans!B54,C21=Trans!C54,C21=Trans!D54,C21=Trans!E54),Trans!A54,Trans!A55))) -> - | J21: Select | M21: =IF($C$5=Trans!$A$6,Trans!A90, IF($C$5=Trans!$B$6,Trans!B90, IF($C$5=Trans!$C$6,Trans!C90, IF($C$5=Trans!$D$6,Trans!D90,Trans!E90)))) -> Stapeln sowie Be- oder Entladen von Regalen mit etwa ausgeglichenem Verhältnis zwischen Fahr- und Hydraulikbetrieb | N21: =IF($C$5=Trans!$A$6,Trans!A93, IF($C$5=Trans!$B$6,Trans!B93, IF($C$5=Trans!$C$6,Trans!C93, IF($C$5=Trans!$D$6,Trans!D93,Trans!E93)))) -> Hubhöhen zumeist unterhalb von 3 Metern – nur gelegentlich größere Hubhöhen | O21: =IF($C$5=Trans!$A$6,Trans!A103, IF($C$5=Trans!$B$6,Trans!B103, IF($C$5=Trans!$C$6,Trans!C103, IF($C$5=Trans!$D$6,Trans!D103,Trans!E103)))) -> MITTLERE BEANSPRUCHUNG | P21: =IF($C$5=Trans!$A$6,Trans!A104, IF($C$5=Trans!$B$6,Trans!B104, IF($C$5=Trans!$C$6,Trans!C104, IF($C$5=Trans!$D$6,Trans!D104,Trans!E104)))) -> STARKE BEANSPRUCHUNG | Q21: =IF($C$5=Trans!$A$6,Trans!A105, IF($C$5=Trans!$B$6,Trans!B105, IF($C$5=Trans!$C$6,Trans!C105, IF($C$5=Trans!$D$6,Trans!D105,Trans!E105)))) -> INTENSIVE BEANSPRUCHUNG
B23: =IF($C$5=Trans!$A$6,Trans!A23, IF($C$5=Trans!$B$6,Trans!B23, IF($C$5=Trans!$C$6,Trans!C23, IF($C$5=Trans!$D$6,Trans!D23,Trans!E23)))) -> Kühlhaus | D23: =IF($C$5=Trans!$A$6,Trans!A32, IF($C$5=Trans!$B$6,Trans!B32, IF($C$5=Trans!$C$6,Trans!C32, IF($C$5=Trans!$D$6,Trans!D32,Trans!E32)))) -> Auswahl | F23: INC | H23: Cold Store | I23: =IF(F23="INC", "-", IF(OR(C23=Trans!A17,C23=Trans!B17,C23=Trans!C17,C23=Trans!D17,C23=Trans!E17),Trans!A17,Trans!A18)) -> - | J23: Select
B24: =IF($C$5=Trans!$A$6,Trans!A24, IF($C$5=Trans!$B$6,Trans!B24, IF($C$5=Trans!$C$6,Trans!C24, IF($C$5=Trans!$D$6,Trans!D24,Trans!E24)))) -> Kategorie Kühlhaus | D24: =IF($C$5=Trans!$A$6,Trans!A35, IF($C$5=Trans!$B$6,Trans!B35, IF($C$5=Trans!$C$6,Trans!C35, IF($C$5=Trans!$D$6,Trans!D35,Trans!E35)))) -> Auswahl nur mit Kühlhaus | F24: INC | H24: Cold Store Category | I24: =IF(F24="INC","-",IF(OR(C24=Trans!A43,C24=Trans!B43,C24=Trans!C43,C24=Trans!D43,C24=Trans!E43),Trans!A43,Trans!A44)) -> - | J24: Select only if Cold Store = Yes
B26: =IF($C$5=Trans!$A$6,Trans!A25, IF($C$5=Trans!$B$6,Trans!B25, IF($C$5=Trans!$C$6,Trans!C25, IF($C$5=Trans!$D$6,Trans!D25,Trans!E25)))) -> Rampe | D26: =IF($C$5=Trans!$A$6,Trans!A32, IF($C$5=Trans!$B$6,Trans!B32, IF($C$5=Trans!$C$6,Trans!C32, IF($C$5=Trans!$D$6,Trans!D32,Trans!E32)))) -> Auswahl | F26: INC | H26: Ramp | I26: =IF(F26="INC", "-", IF(OR(C26=Trans!A17,C26=Trans!B17,C26=Trans!C17,C26=Trans!D17,C26=Trans!E17),Trans!A17,Trans!A18)) -> - | J26: Select
B27: =IF($C$5=Trans!$A$6,Trans!A26, IF($C$5=Trans!$B$6,Trans!B26, IF($C$5=Trans!$C$6,Trans!C26, IF($C$5=Trans!$D$6,Trans!D26,Trans!E26)))) -> Länge | D27: =IF($C$5=Trans!$A$6,Trans!A36, IF($C$5=Trans!$B$6,Trans!B36, IF($C$5=Trans!$C$6,Trans!C36, IF($C$5=Trans!$D$6,Trans!D36,Trans!E36)))) -> Auswahl nur mit Rampe | F27: INC | H27: Length | I27: =IF(F27="INC", "-", C27) -> - | J27: Select only if ramp = Yes
B28: =IF($C$5=Trans!$A$6,Trans!A27, IF($C$5=Trans!$B$6,Trans!B27, IF($C$5=Trans!$C$6,Trans!C27, IF($C$5=Trans!$D$6,Trans!D27,Trans!E27)))) -> Gefälle | D28: =IF($C$5=Trans!$A$6,Trans!A36, IF($C$5=Trans!$B$6,Trans!B36, IF($C$5=Trans!$C$6,Trans!C36, IF($C$5=Trans!$D$6,Trans!D36,Trans!E36)))) -> Auswahl nur mit Rampe | F28: INC | H28: Gradient | I28: =IF(F28="INC", "-", C28) -> - | J28: Select only if ramp = Yes | M28: =IF($C$5=Trans!$A$6,Trans!A91, IF($C$5=Trans!$B$6,Trans!B91, IF($C$5=Trans!$C$6,Trans!C91, IF($C$5=Trans!$D$6,Trans!D91,Trans!E91)))) -> Stapeln sowie Be- oder Entladen mit längeren Zeiten für das Handling von Lasten in der Höhe | N28: =IF($C$5=Trans!$A$6,Trans!A94, IF($C$5=Trans!$B$6,Trans!B94, IF($C$5=Trans!$C$6,Trans!C94, IF($C$5=Trans!$D$6,Trans!D94,Trans!E94)))) -> Hubhöhen zumeist oberhalb von 3 Metern | O28: =IF($C$5=Trans!$A$6,Trans!A104, IF($C$5=Trans!$B$6,Trans!B104, IF($C$5=Trans!$C$6,Trans!C104, IF($C$5=Trans!$D$6,Trans!D104,Trans!E104)))) -> STARKE BEANSPRUCHUNG | P28: =IF($C$5=Trans!$A$6,Trans!A105, IF($C$5=Trans!$B$6,Trans!B105, IF($C$5=Trans!$C$6,Trans!C105, IF($C$5=Trans!$D$6,Trans!D105,Trans!E105)))) -> INTENSIVE BEANSPRUCHUNG | Q28: =IF($C$5=Trans!$A$6,Trans!A105, IF($C$5=Trans!$B$6,Trans!B105, IF($C$5=Trans!$C$6,Trans!C105, IF($C$5=Trans!$D$6,Trans!D105,Trans!E105)))) -> INTENSIVE BEANSPRUCHUNG
B29: =IF($C$5=Trans!$A$6,Trans!A28, IF($C$5=Trans!$B$6,Trans!B28, IF($C$5=Trans!$C$6,Trans!C28, IF($C$5=Trans!$D$6,Trans!D28,Trans!E28)))) -> Nutzungshäufigkeit | D29: =IF($C$5=Trans!$A$6,Trans!A36, IF($C$5=Trans!$B$6,Trans!B36, IF($C$5=Trans!$C$6,Trans!C36, IF($C$5=Trans!$D$6,Trans!D36,Trans!E36)))) -> Auswahl nur mit Rampe | F29: INC | H29: Frequency used | I29: =IF(F29="INC", "-", IF(OR(C29=Trans!A49,C29=Trans!B49,C29=Trans!C49,C29=Trans!D49,C29=Trans!E49),Trans!A49,IF(OR(C29=Trans!A50,C29=Trans!B50,C29=Trans!C50,C29=Trans!D50,C29=Trans!E50),Trans!A50,Trans!A51))) -> - | J29: Select only if ramp = Yes
B31: =IF($C$5=Trans!$A$6,Trans!A29, IF($C$5=Trans!$B$6,Trans!B29, IF($C$5=Trans!$C$6,Trans!C29, IF($C$5=Trans!$D$6,Trans!D29,Trans!E29)))) -> Elektr. Zusatzfunktionen, Beleuchtung etc. | D31: =IF($C$5=Trans!$A$6,Trans!A32, IF($C$5=Trans!$B$6,Trans!B32, IF($C$5=Trans!$C$6,Trans!C32, IF($C$5=Trans!$D$6,Trans!D32,Trans!E32)))) -> Auswahl | F31: INC | H31: Aux Electrics, Lights etc.… | I31: =IF(F31="INC", "-", IF(OR(C31=Trans!A17,C31=Trans!B17,C31=Trans!C17,C31=Trans!D17,C31=Trans!E17),Trans!A17,Trans!A18)) -> - | J31: Select
B32: =IF($C$5=Trans!$A$6,Trans!A30, IF($C$5=Trans!$B$6,Trans!B30, IF($C$5=Trans!$C$6,Trans!C30, IF($C$5=Trans!$D$6,Trans!D30,Trans!E30)))) -> Kabinenheizung | D32: =IF($C$5=Trans!$A$6,Trans!A32, IF($C$5=Trans!$B$6,Trans!B32, IF($C$5=Trans!$C$6,Trans!C32, IF($C$5=Trans!$D$6,Trans!D32,Trans!E32)))) -> Auswahl | F32: INC | H32: Cab Heater | I32: =IF(F32="INC", "-", IF(OR(C32=Trans!A17,C32=Trans!B17,C32=Trans!C17,C32=Trans!D17,C32=Trans!E17),Trans!A17,Trans!A18)) -> - | J32: Select
B35: =IF($C$5=Trans!$A$6,Trans!A57, IF($C$5=Trans!$B$6,Trans!B57, IF($C$5=Trans!$C$6,Trans!C57, IF($C$5=Trans!$D$6,Trans!D57,Trans!E57)))) -> Energieverbrauch Staplergrundmodell | F35: To hide
B36: Truck Capacity | C36: =IFERROR(INDEX(Specs!B3:B33, MATCH(Calculator!I9,TRUCKS, 0)), "-") -> - | D36: Tons | F36: To hide | H36: Truck Capacity | J36: Tons
B37: E-Lo Base Duty Cycle Consumption | C37: =IF(F16="OK", INDEX(INDEXarea,MATCH(Calculator!I9,TRUCKS, 0),MATCH(Calculator!I16,MATCHCOLUMNS,0)), "-") -> - | D37: kWh/h | F37: To hide | H37: E-Lo Base Duty Cycle Consumption | J37: kWh/h
B38: Hip Base Duty Cycle Consumption | C38: =IF(F16="OK", INDEX(INDEXAREA_HIP,MATCH(Calculator!I9,TRUCKS, 0),MATCH(Calculator!I16,MATCHCOLUMNS_HIP,0)), "-") -> - | D38: kWh/h | F38: To hide | H38: Hip Base Duty Cycle Consumption | J38: kWh/h
B40: =IF($C$5=Trans!$A$6,Trans!A61, IF($C$5=Trans!$B$6,Trans!B61, IF($C$5=Trans!$C$6,Trans!C61, IF($C$5=Trans!$D$6,Trans!D61,Trans!E61)))) -> Anwendungsenergieverbrauch
B41: =IF($C$5=Trans!$A$6,Trans!A62, IF($C$5=Trans!$B$6,Trans!B62, IF($C$5=Trans!$C$6,Trans!C62, IF($C$5=Trans!$D$6,Trans!D62,Trans!E62)))) -> E-Lo-Leistung | C41: =IF(AND(F16="OK",F18="OK",F20="OK",F21="OK",F23="OK",F26="OK",F31="OK",F32="OK"),IFERROR(C37+(C37*(INDEX(Variables!B30:B31,MATCH(Calculator!I20,Attachment,0))))+(C37*(INDEX(Variables!B80:B82,MATCH(I21,Side,0))))+(C37*(INDEX(Variables!B88:B90,MATCH(I18,Mast_Type,0))))+IF(I26="Yes",(C37*(INDEX(Variables!B60:B64,MATCH(I27,Length,0))))+(C37*(INDEX(Variables!B74:B76,MATCH(I28,Gradient,0))))+(C37*(INDEX(Variables!B68:B70,MATCH(I29,Frequency,0)))),0)+(IF(I31="Yes",INDEX(Variables!B93:B95,MATCH(I31,Aux_Elec,0))))+(IF(I32="Yes",INDEX(CAB_HEATER_COL,MATCH(Calculator!I9,TRUCKS,0)))),"-"),"-") -> - | D41: kWh/h | I41: =IF(AND(F16="OK",F18="OK",F20="OK",F21="OK",F23="OK",F26="OK",F31="OK",F32="OK"),IFERROR(C37+(C37*(INDEX(Variables!B30:B31,MATCH(Calculator!I20,Attachment,0))))+(C37*(INDEX(Variables!B80:B82,MATCH(I21,Side,0))))+(C37*(INDEX(Variables!B88:B90,MATCH(I18,Mast_Type,0))))+IF(I26="Yes",(C37*(INDEX(Variables!B60:B64,MATCH(I27,Length,0))))+(C37*(INDEX(Variables!B74:B76,MATCH(I28,Gradient,0))))+(C37*(INDEX(Variables!B68:B70,MATCH(I29,Frequency,0)))),0)+(IF(I31="Yes",INDEX(Variables!B93:B95,MATCH(I31,Aux_Elec,0))))+(IF(I32="Yes",INDEX(CAB_HEATER_COL,MATCH(Calculator!I9,TRUCKS,0)))),"-"),"-") -> - | M41: =IF($C$5=Trans!$A$6,Trans!A115, IF($C$5=Trans!$B$6,Trans!B115, IF($C$5=Trans!$C$6,Trans!C115, IF($C$5=Trans!$D$6,Trans!D115,Trans!E115)))) -> Anleitung
B42: =IF($C$5=Trans!$A$6,Trans!A63, IF($C$5=Trans!$B$6,Trans!B63, IF($C$5=Trans!$C$6,Trans!C63, IF($C$5=Trans!$D$6,Trans!D63,Trans!E63)))) -> HiP-Leistung | C42: =IF(AND(F16="OK",F18="OK",F20="OK",F21="OK",F23="OK",F26="OK",F31="OK",F32="OK"),IFERROR(C38+(C38*(INDEX(Variables!B30:B31,MATCH(Calculator!I20,Attachment,0))))+(C38*(INDEX(Variables!B80:B82,MATCH(I21,Side,0))))+(C38*(INDEX(Variables!B88:B90,MATCH(I18,Mast_Type,0))))+IF(I26="Yes",(C38*(INDEX(Variables!B60:B64,MATCH(I27,Length,0))))+(C38*(INDEX(Variables!B74:B76,MATCH(I28,Gradient,0))))+(C38*(INDEX(Variables!B68:B70,MATCH(I29,Frequency,0)))),0)+(IF(I31="Yes",INDEX(Variables!B93:B95,MATCH(I31,Aux_Elec,0))))+(IF(I32="Yes",INDEX(CAB_HEATER_COL,MATCH(Calculator!I9,TRUCKS,0)))),"-"),"-") -> - | D42: kWh/h | M42: =IF($C$5=Trans!$A$6,Trans!A116, IF($C$5=Trans!$B$6,Trans!B116, IF($C$5=Trans!$C$6,Trans!C116, IF($C$5=Trans!$D$6,Trans!D116,Trans!E116)))) -> Der Bleibatterie – Ladezustands - Rechner ist in der Lage Ihnen den erwarteten Batterieverbrauch der Gegengewichtsgabelstapler in bestimmten Anwendungen auszurechnen und die für Sie optimale Batteriegröße für Ihren Einsatz wiederzugeben. Bitte wählen Sie zunächste Ihre Sprache in Spalte „C5“. Danach nutzen Sie bitte die Auswahlmöglichkeiten in Spalte „C“ und den Stapler und den Einsatz zu konfigurieren. In Spalte „D“ sehen Sie die zwangsläufig benötigten Teile, zusammen mit einer kleinen Beschreibung in roter Schrift. Sobald Sie alle benötigten Felder ausgefüllt haben, werden Sie eine Zusammenfassung sehen und die für Sie vorgeschlagende Batteriegröße.
B44: =IF($C$5=Trans!$A$6,Trans!A67, IF($C$5=Trans!$B$6,Trans!B67, IF($C$5=Trans!$C$6,Trans!C67, IF($C$5=Trans!$D$6,Trans!D67,Trans!E67)))) -> Geschätzte Batterielebensdauer
B45: V | C45: =IFERROR(INDEX(Variables!B2:B25, MATCH(Calculator!C10,Variables!A2:A25, 0)), "-") -> - | F45: To hide | L45: Hide this row in final calculator
B46: Ah | C46: =IFERROR(INDEX(Variables!C2:C25, MATCH(Calculator!C10,Variables!A2:A25, 0)),"-") -> - | F46: To hide | L46: Hide this row in final calculator
B47: Watt hours | C47: =IFERROR(C45*C46, "-") -> - | F47: To hide | L47: Hide this row in final calculator
B48: kWh | C48: =IFERROR((C47/1000)*(C50*(1-IF(I23="Yes",INDEX(Variables!B39:B41,MATCH(I24,COLD,0))))), "-") -> - | D48: based on 80% discharge | F48: To hide | L48: Hide this row in final calculator
B49: kWh | C49: =IFERROR(C48*(1-DegradationIndex), "-") -> - | D49: Incl. 15% battery degradation | F49: To hide | L49: Hide this row in final calculator
B50: =IF($C$5=Trans!$A$6,Trans!A73, IF($C$5=Trans!$B$6,Trans!B73, IF($C$5=Trans!$C$6,Trans!C73, IF($C$5=Trans!$D$6,Trans!D73,Trans!E73)))) -> Entladung | C50: 0.8 | F50: To hide | L50: Hide this row in final calculator
F51: To hide | L51: Hide this row in final calculator
B52: =IF($C$5=Trans!$A$6,Trans!A113, IF($C$5=Trans!$B$6,Trans!B113, IF($C$5=Trans!$C$6,Trans!C113, IF($C$5=Trans!$D$6,Trans!D113,Trans!E113)))) -> Anwendungsanforderung | C52: =IFERROR(C12, "-") -> 0 | D52: =IF($C$5=Trans!$A$6,Trans!A78, IF($C$5=Trans!$B$6,Trans!B78, IF($C$5=Trans!$C$6,Trans!C78, IF($C$5=Trans!$D$6,Trans!D78,Trans!E78)))) -> Stunden
B53: =IF($C$5=Trans!$A$6,Trans!A62, IF($C$5=Trans!$B$6,Trans!B62, IF($C$5=Trans!$C$6,Trans!C62, IF($C$5=Trans!$D$6,Trans!D62,Trans!E62)))) -> E-Lo-Leistung | C53: =IFERROR(C49/(C41*C14), "-") -> - | D53: =IF($C$5=Trans!$A$6,Trans!A78, IF($C$5=Trans!$B$6,Trans!B78, IF($C$5=Trans!$C$6,Trans!C78, IF($C$5=Trans!$D$6,Trans!D78,Trans!E78)))) -> Stunden
B54: =IF($C$5=Trans!$A$6,Trans!A63, IF($C$5=Trans!$B$6,Trans!B63, IF($C$5=Trans!$C$6,Trans!C63, IF($C$5=Trans!$D$6,Trans!D63,Trans!E63)))) -> HiP-Leistung | C54: =IFERROR(C49/(C42*C14),"-") -> - | D54: =IF($C$5=Trans!$A$6,Trans!A78, IF($C$5=Trans!$B$6,Trans!B78, IF($C$5=Trans!$C$6,Trans!C78, IF($C$5=Trans!$D$6,Trans!D78,Trans!E78)))) -> Stunden
M58: APPLICATION MATRIX
M59: Choose duty cycle from the matrix criterea and enter result in the calculator | O59: WHAT LOADS ARE HANDLED?
O60: ='Application Factors'!C7 -> Generally Light Loads | P60: ='Application Factors'!C8 -> Light to Medium Loads | Q60: ='Application Factors'!C9 -> Capacity Loads
O61: ='Application Factors'!D7 -> Generally less than 50% capacity occasional capacity loads | P61: ='Application Factors'!D8 -> Generally less than 75% capacity occasional capacity loads | Q61: ='Application Factors'!D9 -> Often Handling loads at or close to capacity
M62: TRAVEL Vs. HYDRAULICS OPERATION?
M63: ='Application Factors'!C11 -> Generally Stacking and Loading - signficantly more travel than lifting | N63: ='Application Factors'!D11 -> Ground Handling and stacking - Lifts below 3m | O63: VERY LIGHT DUTY | P63: LIGHT DUTY | Q63: MEDIUM DUTY
M64: ='Application Factors'!C13 -> Stacking and loading or unloading with significant time handling loads at height | N64: ='Application Factors'!D12 -> Most Lifts below 3 m but with occasional higher lifts | O64: LIGHT DUTY | P64: MEDIUM DUTY | Q64: HEAVY DUTY
M65: ='Application Factors'!C13 -> Stacking and loading or unloading with significant time handling loads at height | N65: ='Application Factors'!D13 -> Signficant High Lifting | O65: MEDIUM DUTY | P65: HEAVY DUTY | Q65: HEAVY DUTY
B66: =IF($C$5=Trans!$A$6,Trans!A107, IF($C$5=Trans!$B$6,Trans!B107, IF($C$5=Trans!$C$6,Trans!C107, IF($C$5=Trans!$D$6,Trans!D107,Trans!E107)))) -> HAFTUNGSAUSSCHLUSS
B67: =IF($C$5=Trans!$A$6,Trans!A109, IF($C$5=Trans!$B$6,Trans!B109, IF($C$5=Trans!$C$6,Trans!C109, IF($C$5=Trans!$D$6,Trans!D109,Trans!E109)))) -> DIESES TOOL VON HYG ZUR VERLÄNGERUNG DER LEBENSDAUER VON BLEISÄUREBATTERIEN VERWENDET GENERISCHE UND TECHNISCHE DATEN DER HYSTER-YALE GROUP (HYG) UND IHREN ZULIEFERERN ZUR MODELLIERUNG DER LEBENSDAUER VON BLEISÄUREBATTERIEN IN VON HYG BEREITGESTELLTEN FLURFÖRDERZEUGEN. DAS TOOL BERECHNET DIE LEISTUNG VON FLURFÖRDERZEUGEN IN TYPISCHEN FLURFÖRDERANWENDUNGEN AUF GRUNDLAGE VON BENUTZEREINGABEN. OBWOHL SICH HYG BEMÜHT HAT, DIE GENAUIGKEIT DER ERGEBNISSE SICHERZUSTELLEN, KANN HYG KEINERLEI GARANTIE FÜR DIE GENAUIGKEIT ODER EIGNUNG DER ERMITTELTEN ERGEBNISSE FÜR SPEZIFISCHE KUNDEN ODER ANWENDUNGEN ÜBERNEHMEN. DARÜBER HINAUS HÄNGT DIE LEISTUNG DES TOOLS VON DER VOLLSTÄNDIGKEIT UND DER GENAUIGKEIT DER BENUTZEREINGABEN AB. DIE VON DEM TOOL ERMITTELTEN ERGEBNISSE KÖNNEN DURCH VERWENDUNG UNVOLLSTÄNDIGER ODER UNGENAUER EINGABEN BEEINTRÄCHTIGT WERDEN. DAS TOOL STELLT NUR SCHÄTZUNGEN BEREIT. ES DARF NICHT ZUR GENAUEN PROGNOSE ODER VORHERSAGE VON ERGEBNISSEN IN TATSÄCHLICH GENUTZTEN FLURFÖRDERZEUGEN VERWENDET WERDEN. HYG LEHNT AUSDRÜCKLICH UND OHNE EINSCHRÄNKUNG JEGLICHE HAFTUNG FÜR DIREKTE ODER INDIREKTE SCHÄDEN ODER VERLUSTE ALLER ART AB, WELCHE SICH MÖGLICHERWEISE DURCH DIE NUTZUNG ODER BERUFUNG AUF ERGEBNISSE DES TOOLS VON HYG ZUR VERLÄNGERUNG DER BATTERIELEBENSDAUER ERGEBEN KÖNNTEN.

Sheet Trans (hidden)
A1: Translations
A6: English | B6: Deutsch | C6: Français | D6: Español | E6: Italiano
A7: Lead Acid Battery | B7: Bleisäurebatterie | C7: Batterie au plomb | D7: Batería de Ácido Plomo | E7: Batteria al piombo acido
A8: Battery Duration Guide | B8: Leitfaden zur Verlängerung der Batterielebensdauer | C8: Guide d'évaluation de la durée d'une batterie | D8: Guía de Duración de la Batería | E8: Guida durata delle batterie
A10: Truck, Battery and Application Selection | B10: Auswahl Stapler, Batterie und Anwendung | C10: Sélection du chariot, de la batterie et de l'application | D10: Selección de Carretilla, Batería y Aplicación | E10: Selezione carrello elevatore, batteria e applicazione
A11: Truck | B11: Stapler | C11: Chariot | D11: Carretilla | E11: Carrello elevatore
A12: Trucks | B12: Stapler | C12: Chariots | D12: Carretillas | E12: Carrelli elevatori
A13: Battery | B13: Batterie | C13: Batterie | D13: Batería | E13: Batteria
A15: Truck Utilisation | B15: Staplernutzung | C15: Utilisation du chariot | D15: Utilización de la Carretilla | E15: Utilizzo del carrello elevatore
A17: Yes | B17: Ja | C17: Oui | D17: Sí | E17: Sì
A18: No | B18: Nein | C18: Non | D18: No | E18: No
A20: Mast Type | B20: Hubgerüsttyp | C20: Type de mât | D20: Tipo de Mástil | E20: Tipo montante
A21: Attachment | B21: Anbaugerät | C21: Accessoire | D21: Accesorio | E21: Attrezzatura
A22: Side Shift/Fork Positioner | B22: Seitenschub/Gabelzinkenverstellung | C22: Déplacement latéral/positionneur de fourches | D22: Desplazamiento Lateral/Posicionador de Horquillas | E22: Traslatore/Posizionatore forca
A23: Cold Store | B23: Kühlhaus | C23: Chambre froide | D23: Almacenamiento en Frío | E23: Cella frigo
A24: Cold Store Category | B24: Kategorie Kühlhaus | C24: Catégorie de chambre froide | D24: Categoría de Almacenamiento en Frío | E24: Categoria per celle frigo
A25: Ramp | B25: Rampe | C25: Rampe | D25: Rampa | E25: Rampa
A26: Length | B26: Länge | C26: Longueur | D26: Longitud | E26: Lunghezza
A27: Gradient | B27: Gefälle | C27: Pente | D27: Gradiente | E27: Pendenza
A28: Frequency used | B28: Nutzungshäufigkeit | C28: Fréquence d'utilisation | D28: Frecuencia de utilización | E28: Frequenza di utilizzo
A29: Aux Electrics, Lights etc.… | B29: Elektr. Zusatzfunktionen, Beleuchtung etc. | C29: Fonctions électriques aux., éclairages, etc. | D29: Electricidad Aux, Luces, etc. | E29: Dispositivi elettrici ausiliari, Luci, ecc.…
A30: Cab Heater | B30: Kabinenheizung | C30: Chauffage de cabine | D30: Calefactor de Cabina | E30: Riscaldatore cabina
A32: Select | B32: Auswahl | C32: Sélectionner | D32: Seleccionar | E32: Seleziona
A33: Select (Prefix ND = Non DIN) | B33: Auswahl (Präfix ND = nicht DIN) | C33: Sélectionner (préfixe ND = Non-DIN) | D33: Seleccionar (Prefijo ND = No DIN) | E33: Seleziona (Prefisso ND = Non DIN)
A34: Select based on application matrix | B34: Auswahl auf Basis der Anwendungsmatrix | C34: Sélectionner sur la base de la matrice de l'application | D34: Seleccionar basándose en la matriz de aplicaciones | E34: Seleziona in base alla matrice dell'applicazione
A35: Select only with Cold Store | B35: Auswahl nur mit Kühlhaus | C35: Sélectionner uniquement avec chambre froide | D35: Seleccionar solamente con Almacenamiento en Frío | E35: Seleziona solo con Cella frigo
A36: Select only with Ramp | B36: Auswahl nur mit Rampe | C36: Sélectionner uniquement avec rampe | D36: Seleccionar solamente con Rampa | E36: Seleziona solo con rampa
A38: Attachment | B38: Anbaugerät | C38: Accessoire | D38: Accesorio | E38: Attrezzatura
A39: Clamp / Rotator | B39: Klammer/Drehvorrichtung | C39: Accessoire de serrage/accessoire rotatif | D39: Pinza / Rotador | E39: Pinza / Dispositivo di rotazione
A40: No | B40: Nein | C40: Non | D40: No | E40: No
A42: Cold Store | B42: Kühlhaus | C42: Chambre froide | D42: Almacenamiento en Frío | E42: Cella frigo
A43: Chilled store | B43: Gekühltes Lager | C43: Chambre réfrigérée | D43: Almacenamiento Refrigerado | E43: Magazzino refrigerato
A44: Sub zero freezer | B44: Tiefkühllager | C44: Chambre ultra-froide | D44: Congelador bajo cero | E44: Cella frigorifera sotto zero
A45: No | B45: Nein | C45: Non | D45: No | E45: No
A47: Ramp | B47: Rampe | C47: Rampe | D47: Rampa | E47: Rampa
A48: Frequency | B48: Häufigkeit | C48: Fréquence | D48: Frecuencia | E48: Frequenza
A49: Continuous | B49: Kontinuierlich | C49: En continu | D49: Continua | E49: Continuamente
A50: Sometimes | B50: Gelegentlich | C50: Quelquefois | D50: Algunas veces | E50: Talvolta
A51: Rarely | B51: Selten | C51: Rarement | D51: Raramente | E51: Raramente
A53: Side Shift & Fork Positioner | B53: Seitenschub und Gabelzinkenverstellung | C53: Déplacement latéral et positionneur de fourches | D53: Desplazamiento Lateral y Posicionador de Horquillas | E53: Traslatore e posizionatore forca
A54: Side Shift | B54: Seitenschub | C54: Déplacement latéral | D54: Desplazamiento Lateral | E54: Traslatore
A55: No | B55: Nein | C55: Non | D55: No | E55: No
A57: Basic Truck Energy Consumption | B57: Energieverbrauch Staplergrundmodell | C57: Consommation énergétique du chariot de base | D57: Consumo de Energía de la Carretilla Básica | E57: Consumo energetico di base del carrello elevatore
A58: Truck Capacity | B58: Staplertragfähigkeit | C58: Capacité du chariot | D58: Capacidad de la Carretilla | E58: Portata carrello
A59: E-Lo Base Duty Cycle Consumption | B59: Energieverbrauch für Basisarbeitszyklus im E-Lo-Modus | C59: Consommation en cycle d'utilisation base E-Lo | D59: Consumo en Ciclo de Trabajo Base E-Lo | E59: Consumo con ciclo di lavoro base E-Lo
A60: Hip Base Duty Cycle Consumption | B60: Energieverbrauch für Basisarbeitszyklus im HiP-Modus | C60: Consommation en cycle d'utilisation base HiP | D60: Consumo en Ciclo de Trabajo Base Hip | E60: Consumo con ciclo di lavoro base Hip
A61: Application Consumption | B61: Anwendungsenergieverbrauch | C61: Consommation pour l'application | D61: Consumo de la Aplicación | E61: Consumo applicazione
A62: E-Lo Performance | B62: E-Lo-Leistung | C62: Performances E-Lo | D62: Rendimiento E-Lo | E62: Prestazione E-Lo
A63: HiP Performance | B63: HiP-Leistung | C63: Performances HiP | D63: Rendimiento HiP | E63: Prestazione HiP
A65: Tons | B65: Tonnen | C65: Tonnes | D65: Toneladas | E65: Tonnellate
A67: Estimated Battery Duration | B67: Geschätzte Batterielebensdauer | C67: Durée estimée de la batterie | D67: Duración Estimada de la Batería | E67: Durata stimata della batteria
A68: V | B68: V | C68: V | D68: V | E68: V
A69: Ah | B69: Ah | C69: Ah | D69: Ah | E69: Ah
A70: Watt hours | B70: Wattstunden | C70: Watts/heure | D70: Vatios hora | E70: Wattora
A71: kWh | B71: kWh | C71: kWh | D71: kWh | E71: kWh
A72: kWh | B72: kWh | C72: kWh | D72: kWh | E72: kWh
A73: Discharge | B73: Entladung | C73: Décharge | D73: Descarga | E73: Scarica
A75: based on 80% discharge | B75: basierend auf 80 % Entladung | C75: Sur la base de 80 % de décharge | D75: basándose en un 80% de descarga | E75: in base all'80% di scarica
A76: Incl. 15% battery degradation | B76: einschl. 15 % Batteriealterung | C76: Inclut une dégradation de 15 % de la batterie | D76: Incl. un 15% de degradación de la batería | E76: Compr. il 15% di degrado della batteria
A78: Hours | B78: Stunden | C78: Heures | D78: Horas | E78: Ore
A80: Duty Cycle | B80: Arbeitszyklus | C80: Cycle d'utilisation | D80: Ciclo de Trabajo | E80: Ciclo di lavoro
A81: Light Duty | B81: Leichte Beanspruchung | C81: Application légère | D81: Trabajo Ligero | E81: Lavoro leggero
A82: Medium Duty | B82: Mittlere Beanspruchung | C82: Application moyennement ardue | D82: Trabajo Medio | E82: Lavoro mediamente gravoso
A83: Heavy Duty | B83: Schwere Beanspruchung | C83: Application ardue | D83: Trabajo Fuerte | E83: Lavoro altamente gravoso
A84: Intensive Duty | B84: Intensive Beanspruchung | C84: Application intensive | D84: Trabajo Intensivo | E84: Lavoro intensivo
A86: Application Matrix | B86: Anwendungsmatrix | C86: Matrice De L'Application | D86: Matriz De Aplicaciones | E86: Matrice Applicazione
A87: Choose duty cycle from the matrix criteria and select result in the calculator | B87: In den Matrixkriterien „Arbeitszyklus“ und im Rechner „Ergebnis“ wählen. | C87: Choisissez type d'application à partir des critères de la matrice et sélectionnez le résultat dans le calculateur | D87: Elija un ciclo de trabajo en los criterios de la matriz y seleccione el resultado en la calculadora | E87: Scegliere il ciclo di lavoro dai criteri della matrice e selezionare il risultato nel calcolatore
A88: TRAVEL Vs. HYDRAULICS OPERATION? | B88: FAHR- UND/ODER HYDRAULIKBETRIEB? | C88: DÉPLACEMENT OU UTILISATION DE L'HYDRAULIQUE ? | D88: ¿DESPLAZAMIENTO DEL VEHÍCULO FRENTE A FUNCIONAMIENTO DE LOS HIDRÁULICOS? | E88: MARCIA RISPETTO AL FUNZIONAMENTO IDRAULICO?
A89: Generally Stacking and Loading - signficantly more travel than lifting | B89: Zumeist Stapeln und Beladen mit deutlich mehr Fahr- als Hydraulikbetrieb | C89: En général, gerbage et chargement, avec beaucoup plus de déplacements que de levées | D89: Generalmente Apilado y Carga - significativamente más desplazamiento que elevación | E89: Stoccaggio e carico in generale - notevolmente più marcia che sollevamento
A90: Stacking and loading or unloading racking with similar amounts of travel and hydraulic work | B90: Stapeln sowie Be- oder Entladen von Regalen mit etwa ausgeglichenem Verhältnis zwischen Fahr- und Hydraulikbetrieb | C90: Gerbage et chargement ou déchargement de rayonnages avec autant de déplacements que de fonctionnement hydraulique | D90: Apilado y carga o descarga de estanterías con una cantidad similar de desplazamiento y de trabajo hidráulico | E90: Stoccaggio e carico o scarico rastrelliere con quantità simili di marcia e funzionamento idraulico
A91: Stacking and loading or unloading with significant time handling loads at height | B91: Stapeln sowie Be- oder Entladen mit längeren Zeiten für das Handling von Lasten in der Höhe | C91: Gerbage et chargement ou déchargement avec beaucoup de temps de manutention de charges à grandes hauteurs | D91: Apilado y carga o descarga con un tiempo significativo de manejo de cargas en altura | E91: Stoccaggio e carico o scarico con un tempo significativo di movimentazione di carichi in posizione elevata
A92: Ground Handling and stacking - Lifts below 3m | B92: Handling und Stapeln in Bodennähe mit Hubhöhen unterhalb von 3 Metern | C92: Manutention et gerbage au niveau du sol - levées à moins de 3 m | D92: Manejo en el Suelo y apilado - Elevación por debajo de 3m | E92: Movimentazione e stoccaggio a terra - Sollevamenti al di sotto dei 3 m
A93: Most Lifts below 3 m but with occasional higher lifts | B93: Hubhöhen zumeist unterhalb von 3 Metern – nur gelegentlich größere Hubhöhen | C93: La plupart des levées se font à moins de 3 m, mais avec des levées à plus grandes hauteurs occasionnelles | D93: La mayoría de elevaciones por debajo de 3 m pero con elevaciones a mayor altura de forma ocasional | E93: La maggior parte dei sollevamenti al di sotto dei 3 m ma con sollevamenti occasionali più elevati
A94: Most Lifts above 3 m | B94: Hubhöhen zumeist oberhalb von 3 Metern | C94: La plupart des levées se font au-dessus de 3 m | D94: La mayoría de elevaciones por encima de 3 m | E94: La maggior parte dei sollevamenti al di sopra dei 3 m
A95: WHAT LOADS ARE HANDLED? | B95: WELCHE LASTEN WERDEN BEFÖRDERT? | C95: QUELLES SONT LES CHARGES MANIPULÉES ? | D95: ¿QUÉ CARGAS SE MANEJAN? | E95: QUALI CARICHI VENGONO MOVIMENTATI?
A96: Generally Light Loads | B96: Normalerweise leichte Lasten | C96: Charges légères, en général | D96: Generalmente Cargas Ligeras | E96: Carichi generalmente leggeri
A97: Light to Medium Loads | B97: Leichte bis mittelschwere Lasten | C97: Charges légères à moyennes | D97: Cargas de Ligeras a Medias | E97: Carichi da leggeri a medi
A98: Capacity Loads | B98: Maximallasten | C98: Charges nominales | D98: Cargas Nominales | E98: Carichi pari alla portata
A99: Generally less than 50% capacity occasional capacity loads | B99: Normalerweise weniger als 50 % der Maximallast – gelegentlich Maximallasten | C99: En général à moins de 50 % de la capacité, avec occasionnellement des charges à la capacité maximale | D99: Generalmente menos del 50% de la capacidad nominal, cargas nominales de forma ocasional | E99: Carichi generalmente inferiori al 50% della portata e carichi occasionali pari alla portata
A100: Generally less than 75% capacity occasional capacity loads | B100: Normalerweise weniger als 75 % der Maximallast – gelegentlich Maximallasten | C100: En général à moins de 75 % de la capacité, avec occasionnellement des charges à la capacité maximale | D100: Generalmente menos del 75% de la capacidad nominal, cargas nominales de forma ocasional | E100: Carichi generalmente inferiori al 75% della portata e carichi occasionali pari alla portata
A101: Often Handling loads at or close to capacity | B101: Häufiges Handling von Lasten bei oder nahe der Maximallast | C101: Manutention fréquente de charges à la capacité maximale ou à une capacité proche de la capacité maximale | D101: Manejo Frecuente de cargas nominales o próximas a los valores nominales | E101: Movimentazione frequente di carichi pari o prossimi alla portata
A102: LIGHT DUTY | B102: LEICHTE BEANSPRUCHUNG | C102: APPLICATION LÉGÈRE | D102: TRABAJO LIGERO | E102: LAVORO LEGGERO
A103: MEDIUM DUTY | B103: MITTLERE BEANSPRUCHUNG | C103: APPLICATION MOYENNEMENT ARDUE | D103: TRABAJO MEDIO | E103: LAVORO MEDIAMENTE GRAVOSO
A104: HEAVY DUTY | B104: STARKE BEANSPRUCHUNG | C104: APPLICATION ARDUE | D104: TRABAJO FUERTE | E104: LAVORO ALTAMENTE GRAVOSO
A105: INTENSIVE DUTY | B105: INTENSIVE BEANSPRUCHUNG | C105: APPLICATION INTENSIVE | D105: TRABAJO INTENSIVO | E105: LAVORO INTENSIVO
A107: DISCLAIMER | B107: HAFTUNGSAUSSCHLUSS | C107: CLAUSE DE NON-RESPONSABILITÉ | D107: DESCARGO DE RESPONSABILIDAD | E107: DECLINAZIONE DI RESPONSABILITÀ
A109: THIS HYG LEAD ACID BATTERY DURATION TOOL USES GENERIC DATA AND TECHNICAL DATA FROM HYSTER-YALE GROUP (HYG) AND ITS SUPPLIERS TO MODEL THE ESTIMATED BATTERY DURATION OF LEAD ACID BATTERY EQUIPMENT SUPPLIED BY HYG. BASED ON USER INPUTS IT CALCULATES THE PERFORMANCE OF THE EQUIPMENT IN TYPICAL MATERIALS HANDLING APPLICATIONS. WHILE HYG HAS ENDEAVOURED TO ENSURE ITS ACCURACY, HYG CANNOT GUARANTEE THAT THE RESULTS GENERATED WILL BE ACCURATE OR CORRECT FOR A SPECIFIC CUSTOMER OR APPLICATION. FURTHER, THE PERFORMANCE OF THE TOOL RELIES ON THE USER PROVIDING COMPLETE AND ACCURATE INPUTS. RESULTS GENERATED BY THE TOOL MAY BE COMPROMISED IF INCOMPLETE OR INACCURATE INPUTS ARE USED. THE TOOL PROVIDES ESTIMATES ONLY, AND SHOULD NOT BE RELIED UPON TO ACCURATELY FORECAST OR PREDICT RESULTS IN ACTUAL USE OF MATERIALS HANDLING EQUIPMENT. HYG EXPRESSLY DISCLAIMS AND EXCLUDES ANY LIABILITY FOR LOSS OR DAMAGE HOWEVER CAUSED, WHETHER DIRECT OR INDIRECT, THAT MAY RESULT FROM USE OF THE HYG BATTERY DURATION TOOL OR RELIANCE ON ITS RESULTS. | B109: DIESES TOOL VON HYG ZUR VERLÄNGERUNG DER LEBENSDAUER VON BLEISÄUREBATTERIEN VERWENDET GENERISCHE UND TECHNISCHE DATEN DER HYSTER-YALE GROUP (HYG) UND IHREN ZULIEFERERN ZUR MODELLIERUNG DER LEBENSDAUER VON BLEISÄUREBATTERIEN IN VON HYG BEREITGESTELLTEN FLURFÖRDERZEUGEN. DAS TOOL BERECHNET DIE LEISTUNG VON FLURFÖRDERZEUGEN IN TYPISCHEN FLURFÖRDERANWENDUNGEN AUF GRUNDLAGE VON BENUTZEREINGABEN. OBWOHL SICH HYG BEMÜHT HAT, DIE GENAUIGKEIT DER ERGEBNISSE SICHERZUSTELLEN, KANN HYG KEINERLEI GARANTIE FÜR DIE GENAUIGKEIT ODER EIGNUNG DER ERMITTELTEN ERGEBNISSE FÜR SPEZIFISCHE KUNDEN ODER ANWENDUNGEN ÜBERNEHMEN. DARÜBER HINAUS HÄNGT DIE LEISTUNG DES TOOLS VON DER VOLLSTÄNDIGKEIT UND DER GENAUIGKEIT DER BENUTZEREINGABEN AB. DIE VON DEM TOOL ERMITTELTEN ERGEBNISSE KÖNNEN DURCH VERWENDUNG UNVOLLSTÄNDIGER ODER UNGENAUER EINGABEN BEEINTRÄCHTIGT WERDEN. DAS TOOL STELLT NUR SCHÄTZUNGEN BEREIT. ES DARF NICHT ZUR GENAUEN PROGNOSE ODER VORHERSAGE VON ERGEBNISSEN IN TATSÄCHLICH GENUTZTEN FLURFÖRDERZEUGEN VERWENDET WERDEN. HYG LEHNT AUSDRÜCKLICH UND OHNE EINSCHRÄNKUNG JEGLICHE HAFTUNG FÜR DIREKTE ODER INDIREKTE SCHÄDEN ODER VERLUSTE ALLER ART AB, WELCHE SICH MÖGLICHERWEISE DURCH DIE NUTZUNG ODER BERUFUNG AUF ERGEBNISSE DES TOOLS VON HYG ZUR VERLÄNGERUNG DER BATTERIELEBENSDAUER ERGEBEN KÖNNTEN. | C109: CET OUTIL D'ÉVALUATION DE LA DURÉE D'UNE BATTERIE AU PLOMB-ACIDE HYG UTILISE DES DONNÉES GÉNÉRIQUES ET DES DONNÉES TECHNIQUES D'HYSTER-YALE GROUP (HYG) ET DE SES FOURNISSEURS POUR MODÉLISER LA DURÉE ESTIMATIVE DE LA BATTERIE D'UN ÉQUIPEMENT DOTÉ D'UNE BATTERIE AU PLOMB-ACIDE FOURNI PAR HYG. EN SE BASANT SUR LES DONNÉES SAISIES PAR L'UTILISATEUR, IL CALCULE LES PERFORMANCES DE L'ÉQUIPEMENT DANS LE CADRE D'APPLICATIONS DE MANUTENTION TYPES. MÊME SI HYG A FAIT TOUT SON POSSIBLE POUR ASSURER LEUR EXACTITUDE, HYG NE PEUT GARANTIR QUE LES RÉSULTATS GÉNÉRÉS SERONT EXACTS OU CORRECTS POUR UN CLIENT DONNÉ OU UNE APPLICATION SPÉCIFIQUE. EN OUTRE, LE FONCTIONNEMENT DE CET OUTIL EST CONDITIONNÉ PAR L'EXHAUSTIVITÉ ET L'EXACTITUDE DES DONNÉES SAISIES PAR L'UTILISATEUR. LES RÉSULTATS GÉNÉRÉS PAR CET OUTIL PEUVENT ÊTRE COMPROMIS SI LES DONNÉES UTILISÉES SONT INCOMPLÈTES OU INEXACTES. CET OUTIL NE FOURNIT QUE DES ESTIMATIONS ET NE DOIT PAS SERVIR À PRÉVOIR OU À PRÉDIRE AVEC EXACTITUDE LES RÉSULTATS D'UNE UTILISATION RÉELLE D'UN ÉQUIPEMENT DE MANUTENTION. HYG DÉCLINE TOUTE RESPONSABILITÉ EN CAS DE PERTE OU DE DOMMAGE CAUSÉ(E) DE QUELQUE MANIÈRE QUE CE SOIT, DIRECTEMENT OU INDIRECTEMENT, POUVANT DÉCOULER DE L'UTILISATION DE L'OUTIL D'ÉVALUATION DE LA DURÉE D'UNE BATTERIE HYG OU DE LA CONFIANCE ACCORDÉE AUX RÉSULTATS GÉNÉRÉS PAR CET OUTIL. | D109: LA HERRAMIENTA DE DURACIÓN DE LAS BATERÍAS DE ÁCIDO PLOMO DE HYG UTILIZA DATOS GENÉRICOS Y DATOS TÉCNICOS DE HYSTER-YALE GROUP (HYG) Y DE SUS SUMINISTRADORES PARA MODELAR LA DURACIÓN ESTIMADA DE LA BATERÍA EN LOS EQUIPOS CON BATERÍAS DE ÁCIDO PLOMO SUMINISTRADOS POR HYG. BASÁNDOSE EN LOS VALORES INTRODUCIDOS POR EL USUARIO CALCULA EL RENDIMIENTO DE LOS EQUIPOS EN APLICACIONES DE MANUTENCIÓN TÍPICAS. AUNQUE HYG SE HA ESFORZADO POR GARANTIZAR SU EXACTITUD, HYG NO PUEDE GARANTIZAR QUE LOS RESULTADOS GENERADOS SEAN EXACTOS O CORRECTOS PARA UN CLIENTE O APLICACIÓN ESPECÍFICOS. ADICIONALMENTE, EL FUNCIONAMIENTO DE LA HERRAMIENTA SE BASA EN QUE EL USUARIO PROPORCIONE UNOS VALORES DE ENTRADA COMPLETOS Y EXACTOS. LOS RESULTADOS GENERADOS POR LA HERRAMIENTA PUEDEN VERSE COMPROMETIDOS SI SE UTILIZAN VALORES DE ENTRADA INCOMPLETOS O INEXACTOS. LA HERRAMIENTA PROPORCIONA ESTIMACIONES ÚNICAMENTE, Y NO DEBERÍAN TOMARSE COMBO BASE PARA REALIZAR DE FORMA EXACTA PREVISIONES O PREDICCIONES DE RESULTADOS EN EL USO REAL DE LOS EQUIPOS DE MANUTENCIÓN. HYG DECLINA Y EXCLUYE CUALQUIER RESPONSABILIDAD POR LA PÉRDIDAS O DAÑOS DIRECTOS O INDIRECTOS QUE NO OBSTANTE SE PUEDAN CAUSAR, Y QUE PUEDAN PRODUCIRSE COMO CONSECUENCIA DE LA UTILIZACIÓN DE LA HERRAMIENTA DE DURACIÓN DE LA BATERÍA DE HYG O COMO CONSECUENCIA DE CONFIAR EN SUS RESULTADOS. | E109: QUESTO STRUMENTO PER LA DURATA DELLE BATTERIE AL PIOMBO HYG UTILIZZA DATI GENERICI E I DATI TECNICI PROVENIENTI DAL GRUPPO HYSTER-YALE (HYG) E DAI SUOI FORNITORI PER MODELLARE LA DURATA STIMATA DELLA BATTERIA DELLE APPARECCHIATURE CON BATTERIA AL PIOMBO FORNITE DA HYG. IN BASE AI DATI IMMESSI DALL'UTENTE ESSO CALCOLA LE PRESTAZIONI DELL'APPARECCHIATURA IN TIPICHE APPLICAZIONI DI MOVIMENTAZIONE DEI MATERIALI. SEBBENE HYG SI SIA SFORZATA DI GARANTIRNE L'ACCURATEZZA, HYG NON PUÒ GARANTIRE CHE I RISULTATI OTTENUTI SARANNO ACCURATI O CORRETTI PER UNO SPECIFICO CLIENTE O UNA SPECIFICA APPLICAZIONE. INOLTRE, LE PRESTAZIONI DELLO STRUMENTO DIPENDONO DALLA COMPLETEZZA E ACCURATEZZA DEI DATI IMMESSI DALL'UTENTE. SE SI UTILIZZANO DATI DI INGRESSO INCOMPLETI O NON ACCURATI, I RISULTATI GENERATI DALLO STRUMENTO POSSONO ESSERE COMPROMESSI. LO STRUMENTO FORNISCE SOLTANTO DELLE STIME E NON SI DOVREBBE FARE AFFIDAMENTO SU DI ESSO PER PREVEDERE O PREDIRE I RISULTATI DELL'USO EFFETTIVO DELL'APPARECCHIATURA DI MOVIMENTAZIONE DEI MATERIALI. HYG DECLINA ED ESCLUDE ESPRESSAMENTE QUALSIASI RESPONSABILITÀ PER PERDITE E O DANNI IN QUALUNQUE MODO CAUSATI, SIANO ESSI DIRETTI O INDIRETTI, EVENTUALMENTE DERIVANTI DALL'USO DELLO STRUMENTO DI CALCOLO DELLA DURATA DELLE BATTERIE HYG O DALL'AVER FATTO AFFIDAMENTO SUI SUOI RISULTATI.
A111: Working hours per day | B111: Betriebsstunden pro Tag | C111: Nombre d'heures d'utilisation par jour | D111: Horas de trabajo al día | E111: Ore di lavoro al giorno
A112: Break/s & truck idle time (hours) | B112: Pausen- und Staplerstillstandzeiten (Stunden) | C112: Durée des pauses et des temps d'arrêt du chariot (en heures) | D112: Pausa/s y tiempo de reposo de la carretilla (horas) | E112: Pausa/e e tempo di inattività del carrello elevatore (ore)
A113: Application requirement | B113: Anwendungsanforderung | C113: Besoins de l'application | D113: Requisito de la aplicación | E113: Requisito applicazione
A115: Instructions | B115: Anleitung | C115: Instructions | D115: Instrucciones | E115: Istruzioni
A116: The Lead Acid Battery duration guide tool is designed to estimate the energy consumption of our Counterbalanced Forklifts in given applications and from that to suggest optimal Lead Acid battery size to achieve the required shift life. Please start by selecting your desired language in “C5”. You’ll then need to use the drop down menus in the same column “C” in order to configure the truck and the application. The adjacent cells in column “D” will show if the field in column “C” is compulsory with instructions in red font. Once you’ve selected all the required fields you’ll be able to see the application consumption and the estimated battery duration below. | B116: Der Bleibatterie – Ladezustands - Rechner ist in der Lage Ihnen den erwarteten Batterieverbrauch der Gegengewichtsgabelstapler in bestimmten Anwendungen auszurechnen und die für Sie optimale Batteriegröße für Ihren Einsatz wiederzugeben. Bitte wählen Sie zunächste Ihre Sprache in Spalte „C5“. Danach nutzen Sie bitte die Auswahlmöglichkeiten in Spalte „C“ und den Stapler und den Einsatz zu konfigurieren. In Spalte „D“ sehen Sie die zwangsläufig benötigten Teile, zusammen mit einer kleinen Beschreibung in roter Schrift. Sobald Sie alle benötigten Felder ausgefüllt haben, werden Sie eine Zusammenfassung sehen und die für Sie vorgeschlagende Batteriegröße. | C116: Le guide de sélection de la batterie au plomb est un outil conçu pour estimer la consommation d'énergie de nos chariots élévateurs à contrepoids durant des applications données et pour suggérer la taille optimale de la batterie au plomb qui fonctionnera pendant la durée du poste alloué. Commencez par sélectionner la langue recuise dans "C5". Vous devrez ensuite utiliser les menus déroulants dans la même colonne "C" pour configurer le chariot et l'application. Les cellules adjacentes dans la colonne "D" montreront si le champ dans la colonne "C" est obligatoire avec des instructions en police rouge. Une fois que vous avez sélectionné tous les champs requis, vous pourrez voir la consommation utile à l'application et la durée estimée de la batterie ci-dessous. | D116: La herramienta guía de duración de batería de ácido de plomo ha sido diseñada para estimar la energía consumida por nuestras carretillas elevadoras contrapesadas en aplicaciones específicas con el fin de sugerir un tamaño de batería óptimo para alcanzar la duración requerida en la jornada laboral. Por favor empiece seleccionando el idioma adecuado en “C5”. Después necesitará usar los menús desplegables en la misma columna “C” para configurar la carretilla y la aplicación. Las celdas adyacentes en la columna “D” mostrarán si la celda específica en la columna “C” es imperativa con instrucciones en rojo. Una vez se seleccionen todos los campos necesarios podrá ver debajo la consumición en la aplicación y la duración estimada de la batería. | E116: Lo strumento per il calcolo della durata della batteria al piombo-acido è progettato per stimare il consumo energetico dei nostri carrelli controbilanciati in determinate applicazioni, suggerendo le dimensioni ottimali della batteria al piombo-acido a seconda della durata del turno richiesta. Inizia selezionando la lingua desiderata in "C5". Dovrai quindi utilizzare i menu a tendina nella stessa colonna "C" per configurare il carrello e l'applicazione. Le celle adiacenti nella colonna "D" mostreranno se il campo nella colonna "C" è obbligatorio con le istruzioni in carattere rosso. Una volta selezionati tutti i campi richiesti, potrai vedere il consumo energetico dell'applicazione e la durata stimata della batteria.

Sheet Specs (hidden)
D1: E-Lo | M1: Cab Heater | N1: HiP
A2: Model | B2: Capacity, T | C2: tested | D2: Light Duty | E2: Medium Duty | F2: Heavy Duty | G2: Intensive Duty | H2: Batteries1 | I2: Batteries2 | J2: Batteries3 | K2: Batteries4 | L2: Batteries5 | M2: kW | N2: Light Duty | O2: Medium Duty | P2: Heavy Duty | Q2: Intensive Duty
A3: A1.3XNT | B3: 1.3 | D3: =F3+(Specs!F3*Specs!$B$41) -> 1.365 | E3: =F3+(F3*$B$42) -> 1.95 | F3: 3.9 | G3: =F3+(F3*$B$44) -> 4.368 | H3: 24V875Ah | I3: 24V735Ah | M3: =1.5*0.6 -> 0.9 | N3: =P3+(Specs!P3*Specs!$B$41) -> 1.43325 | O3: =P3+(P3*$B$42) -> 2.0475 | P3: =F3*1.05 -> 4.095 | Q3: =P3+(P3*$B$44) -> 4.5864
A4: A1.5XNT | B4: 1.5 | D4: =F4+(Specs!F4*Specs!$B$41) -> 1.4 | E4: =F4+(F4*$B$42) -> 2 | F4: 4 | G4: =F4+(F4*$B$44) -> 4.48 | H4: 24V1000Ah | I4: 24V840Ah | M4: =1.5*0.6 -> 0.9 | N4: =P4+(Specs!P4*Specs!$B$41) -> 1.47 | O4: =P4+(P4*$B$42) -> 2.1 | P4: =F4*1.05 -> 4.2 | Q4: =P4+(P4*$B$44) -> 4.704
A5: J1.5XNT_SWB | B5: 1.5 | D5: =F5+(Specs!F5*Specs!$B$41) -> 1.365 | E5: 1.95 | F5: 3.9 | G5: 4.368 | H5: 48V500Ah | I5: 48V460Ah | J5: 48V420Ah | K5: ND48V700Ah | L5: ND48V595Ah | M5: 0.9 | N5: =P5+(Specs!P5*Specs!$B$41) -> 1.43325 | O5: 2.0475 | P5: 4.095 | Q5: 4.5864
A6: J1.6XN_LWB | B6: 1.6 | D6: =F6+(Specs!F6*Specs!$B$41) -> 1.575 | E6: 2.25 | F6: 4.5 | G6: 5.04 | H6: 48V750Ah | I6: 48V690Ah | J6: ND48V900Ah | K6: ND48V750Ah | L6: ND48V690Ah | M6: 0.9 | N6: =P6+(Specs!P6*Specs!$B$41) -> 1.65375 | O6: 2.3625 | P6: 4.725 | Q6: 5.292
A7: J1.6XN_MWB | B7: 1.6 | C7: 1.71/2.66 | D7: =F7+(Specs!F7*Specs!$B$41) -> 1.54 | E7: 2.2 | F7: 4.4 | G7: =F7*1.02 -> 4.488 | H7: 48V625Ah | I7: 48V575Ah | M7: 0.9 | N7: =P7+(Specs!P7*Specs!$B$41) -> 1.75 | O7: 2.5 | P7: 5 | Q7: =F7*1.23 -> 5.412
A8: J1.6XNT_LWB | B8: 1.6 | D8: =F8+(Specs!F8*Specs!$B$41) -> 1.47 | E8: 2.1 | F8: 4.2 | G8: 4.704 | H8: 48V750Ah | I8: 48V690Ah | M8: 0.9 | N8: =P8+(Specs!P8*Specs!$B$41) -> 1.5435 | O8: 2.205 | P8: =F8*1.05 -> 4.41 | Q8: 4.9392
A9: J1.6XNT_MWB | B9: 1.6 | D9: =F9+(Specs!F9*Specs!$B$41) -> 1.47 | E9: 2.1 | F9: 4.2 | G9: =F9*1.07 -> 4.494 | H9: 48V625Ah | I9: 48V575Ah | M9: 0.9 | N9: =P9+(Specs!P9*Specs!$B$41) -> 1.68 | O9: 2.4 | P9: 4.8 | Q9: 5.4
A10: J1.6XNT_SWB | B10: 1.6 | D10: =F10+(Specs!F10*Specs!$B$41) -> 1.47 | E10: 2.1 | F10: 4.2 | G10: 4.704 | H10: 48V500Ah | I10: 48V460Ah | J10: 48V420Ah | K10: ND48V700Ah | L10: ND48V595Ah | M10: 0.9 | N10: =P10+(Specs!P10*Specs!$B$41) -> 1.5435 | O10: 2.205 | P10: =F10*1.05 -> 4.41 | Q10: 4.9392
A11: J1.8XN_LWB | B11: 1.8 | D11: =F11+(Specs!F11*Specs!$B$41) -> 1.75 | E11: 2.5 | F11: 5 | G11: 5.6 | H11: 48V750Ah | I11: 48V690Ah | J11: ND48V900Ah | K11: ND48V750Ah | L11: ND48V690Ah | M11: 0.9 | N11: =P11+(Specs!P11*Specs!$B$41) -> 1.8375 | O11: 2.625 | P11: =F11*1.05 -> 5.25 | Q11: 5.88
A12: J1.8XN_MWB | B12: 1.8 | C12: 1.48 | D12: =F12+(Specs!F12*Specs!$B$41) -> 1.75 | E12: 2.5 | F12: 5 | G12: 5.6 | H12: 48V625Ah | I12: 48V575Ah | M12: 0.9 | N12: =P12+(Specs!P12*Specs!$B$41) -> 1.8375 | O12: 2.625 | P12: 5.25 | Q12: 5.88
A13: J1.8XNT_LWB | B13: 1.8 | D13: =F13+(Specs!F13*Specs!$B$41) -> 1.645 | E13: 2.35 | F13: 4.7 | G13: 5.264 | H13: 48V750Ah | I13: 48V690Ah | J13: ND48V900Ah | K13: ND48V750Ah | L13: ND48V690Ah | M13: 0.9 | N13: =P13+(Specs!P13*Specs!$B$41) -> 1.72725 | O13: 2.4675 | P13: 4.935 | Q13: 5.5272
A14: J1.8XNT_MWB | B14: 1.8 | C14: 1.15 | D14: =F14+(Specs!F14*Specs!$B$41) -> 1.645 | E14: 2.35 | F14: 4.7 | G14: 5.264 | H14: 48V625Ah | I14: 48V575Ah | J14: ND48V750Ah | K14: ND48V625Ah | M14: 0.9 | N14: =P14+(Specs!P14*Specs!$B$41) -> 1.72725 | O14: 2.4675 | P14: =F14*1.05 -> 4.935 | Q14: 5.5272
A15: J2.0XN_LWB | B15: 2 | C15: 1.37/1.65/2.71/2.31 | D15: =F15+(Specs!F15*Specs!$B$41) -> 1.925 | E15: 2.75 | F15: 5.5 | G15: 6.16 | H15: 48V750Ah | I15: 48V690Ah | J15: ND48V900Ah | K15: ND48V750Ah | L15: ND48V690Ah | M15: 0.9 | N15: =P15+(Specs!P15*Specs!$B$41) -> 2.02125 | O15: 2.8875 | P15: 5.775 | Q15: 6.468
A16: J2.0XN_MWB | B16: 2 | D16: =F16+(Specs!F16*Specs!$B$41) -> 1.925 | E16: 2.75 | F16: 5.5 | G16: 6.16 | H16: 48V625Ah | I16: 48V575Ah | M16: 0.9 | N16: =P16+(Specs!P16*Specs!$B$41) -> 2.135 | O16: 3.05 | P16: 6.1 | Q16: =P16+(P16*$B$44) -> 6.832
A17: J2.0XNT_LWB | B17: 2 | C17: 0.76/1.21 | D17: =F17+(Specs!F17*Specs!$B$41) -> 1.82 | E17: 2.6 | F17: 5.2 | G17: 5.824 | H17: 48V750Ah | I17: 48V690Ah | J17: ND48V900Ah | K17: ND48V750Ah | L17: ND48V690Ah | M17: 0.9 | N17: =P17+(Specs!P17*Specs!$B$41) -> 1.911 | O17: 2.73 | P17: =F17*1.05 -> 5.46 | Q17: 6.1152
A18: J2.0XNT_MWB | B18: 2 | C18: 1.12 | D18: =F18+(Specs!F18*Specs!$B$41) -> 1.925 | E18: 2.75 | F18: 5.5 | G18: 6.16 | H18: 48V625Ah | I18: 48V575Ah | J18: ND48V750Ah | K18: ND48V625Ah | M18: 0.9 | N18: =P18+(Specs!P18*Specs!$B$41) -> 2.135 | O18: 3.05 | P18: 6.1 | Q18: 6.832
A19: J2.2XN_Adv | B19: 2.2 | D19: =F19+(Specs!F19*Specs!$B$41) -> 2.338 | E19: 3.34 | F19: 6.68 | G19: 7.4816 | H19: 80V620Ah | I19: 80V560Ah | M19: 0.9 | N19: =P19+(Specs!P19*Specs!$B$41) -> 2.4549 | O19: 3.507 | P19: =F19*1.05 -> 7.014 | Q19: 7.85568
A20: J2.2XN_Adv_Plus | B20: 2.2 | D20: =F20+(Specs!F20*Specs!$B$41) -> 2.6285 | E20: 3.755 | F20: 7.51 | G20: 8.4112 | H20: 80V620Ah | I20: 80V560Ah | M20: 0.9 | N20: =P20+(Specs!P20*Specs!$B$41) -> 2.759925 | O20: 3.94275 | P20: =F20*1.05 -> 7.8855 | Q20: 8.83176
A21: J2.5XN_717_Adv | B21: 2.5 | C21: 2.45 | D21: =F21+(Specs!F21*Specs!$B$41) -> 2.45 | E21: 3.5 | F21: 7 | G21: =F21*1.16 -> 8.12 | H21: 80V620Ah | I21: 80V560Ah | M21: 0.9 | N21: =P21+(Specs!P21*Specs!$B$41) -> 2.7685 | O21: 3.955 | P21: =F21*1.13 -> 7.91 | Q21: =F21*1.68 -> 11.76
A22: J2.5XN_717_Adv_Plus | B22: 2.5 | D22: =F22+(Specs!F22*Specs!$B$41) -> 2.7545 | E22: 3.935 | F22: 7.87 | G22: 8.8144 | H22: 80V620Ah | I22: 80V560Ah | M22: 0.9 | N22: =P22+(Specs!P22*Specs!$B$41) -> 2.892225 | O22: 4.13175 | P22: =F22*1.05 -> 8.2635 | Q22: 9.25512
A23: J2.5XN_861_Adv | B23: 2.5 | C23: 2.12/2.67 | D23: =F23+(Specs!F23*Specs!$B$41) -> 2.7615 | E23: 3.945 | F23: 7.89 | G23: 8.8368 | H23: 80V750Ah | I23: 80V700Ah | M23: 0.9 | N23: =P23+(Specs!P23*Specs!$B$41) -> 2.899575 | O23: 4.14225 | P23: =F23*1.05 -> 8.2845 | Q23: 9.27864
A24: J2.5XN_861_Adv_Plus | B24: 2.5 | D24: =F24+(Specs!F24*Specs!$B$41) -> 3.101 | E24: 4.43 | F24: 8.86 | G24: 9.9232 | H24: 80V750Ah | I24: 80V700Ah | M24: 0.9 | N24: =P24+(Specs!P24*Specs!$B$41) -> 3.25605 | O24: 4.6515 | P24: 9.303 | Q24: 10.41936
A25: J3.0XN_Adv | B25: 3 | D25: =F25+(Specs!F25*Specs!$B$41) -> 3.045 | E25: 4.35 | F25: 8.7 | G25: 9.744 | H25: 80V775Ah | I25: 80V700Ah | M25: 0.9 | N25: =P25+(Specs!P25*Specs!$B$41) -> 3.19725 | O25: 4.5675 | P25: =F25*1.05 -> 9.135 | Q25: 10.2312
A26: J3.0XN_Adv_Plus | B26: 3 | D26: =F26+(Specs!F26*Specs!$B$41) -> 3.395 | E26: 4.85 | F26: 9.7 | G26: 10.864 | H26: 80V775Ah | I26: 80V700Ah | M26: 0.9 | N26: =P26+(Specs!P26*Specs!$B$41) -> 3.56475 | O26: 5.0925 | P26: =F26*1.05 -> 10.185 | Q26: 11.4072
A27: J3.5XN_Adv | B27: 3.5 | C27: 2.1/2.17 | D27: =F27+(Specs!F27*Specs!$B$41) -> 3.5 | E27: 5 | F27: 10 | G27: 11.2 | H27: 80V775Ah | I27: 80V700Ah | M27: 0.9 | N27: =P27+(Specs!P27*Specs!$B$41) -> 3.5105 | O27: 5.015 | P27: 10.03 | Q27: =P27 -> 10.03
A28: J3.5XN_Adv_Plus | B28: 3.5 | D28: =F28+(Specs!F28*Specs!$B$41) -> 3.955 | E28: 5.65 | F28: 11.3 | G28: 12.656 | H28: 80V775Ah | I28: 80V700Ah | M28: 0.9 | N28: =P28+(Specs!P28*Specs!$B$41) -> 4.15275 | O28: 5.9325 | P28: =F28*1.05 -> 11.865 | Q28: =G28*1.05 -> 13.2888
A29: J4.0XN | B29: 4 | C29: 13/11.3 | D29: =F29+(Specs!F29*Specs!$B$41) -> 4.15625 | E29: 5.9375 | F29: =G29*0.95 -> 11.875 | G29: 12.5 | H29: 80V840Ah | I29: 80V930Ah | M29: =2*0.6 -> 1.2 | N29: =P29+(Specs!P29*Specs!$B$41) -> 4.34 | O29: 6.2 | P29: 12.4 | Q29: 12.9
A30: J4.5XN | B30: 4.5 | C30: 2.94 | D30: =F30+(Specs!F30*Specs!$B$41) -> 4.22275 | E30: 6.0325 | F30: =G30*0.95 -> 12.065 | G30: 12.7 | H30: 80V840Ah | I30: 80V930Ah | M30: =2*0.6 -> 1.2 | N30: =P30+(Specs!P30*Specs!$B$41) -> 4.4338875 | O30: 6.334125 | P30: =F30*1.05 -> 12.66825 | Q30: =G30*1.05 -> 13.335
A31: J5.0XN | B31: 5 | D31: =F31+(Specs!F31*Specs!$B$41) -> 4.28925 | E31: 6.1275 | F31: =G31*0.95 -> 12.255 | G31: 12.9 | H31: 80V840Ah | I31: 80V930Ah | M31: 1.2 | N31: =P31+(Specs!P31*Specs!$B$41) -> 4.5037125 | O31: 6.433875 | P31: =F31*1.05 -> 12.86775 | Q31: =G31*1.05 -> 13.545
A32: J5.0XN6 | B32: 5 | D32: =F32+(Specs!F32*Specs!$B$41) -> 4.35575 | E32: 6.2225 | F32: 12.445 | G32: 13.1 | H32: 80V840Ah | I32: 80V930Ah | M32: 1.2 | N32: =P32+(Specs!P32*Specs!$B$41) -> 4.5735375 | O32: 6.533625 | P32: 13.06725 | Q32: =G32*1.05 -> 13.755
A33: J5.5XN6 | B33: 5.5 | C33: 13.5 | D33: =F33+(Specs!F33*Specs!$B$41) -> 4.725 | E33: 6.75 | F33: 13.5 | G33: 13.5 | H33: 80V840Ah | I33: 80V930Ah | M33: 1.2 | N33: =P33+(Specs!P33*Specs!$B$41) -> 4.96125 | O33: 7.0875 | P33: 14.175 | Q33: =G33*1.05 -> 14.175
M35: 1.5kW | N35: 1-3.5t
I36: Tested | M36: 2kW | N36: 4-5.5t
M37: Use 60% as working factor.
A39: To be replaced with test data for final calculator
A40: Duty %
A41: Light | B41: -0.65
A42: Medium | B42: -0.5
A43: Heavy | B43: 0
A44: Intensive | B44: 0.12

Sheet Log (hidden)
A1: Version | B1: Date | C1: Who | D1: Description
A2: Version 1.0 | B2: 2016-08-03 | C2: L. Ceballos | D2: Calculator creation in Hyster branding, with all the calculations and the main calculation algorythm
A3: Version 1.1 | B3: 2016-08-04 | C3: L. Ceballos | D3: Checked and amended variables with UK TMs
A4: Version 1.2 | B4: 2016-08-06 | C4: L. Ceballos | D4: Validated % with Charlie Whilton
A5: Version 1.3 | B5: 2016-09-02 | C5: L. Ceballos | D5: Added activate/deactivate button changed formula for discharge, added hours and minutes to estimated time
A6: Version 1.4 | B6: 2016-09-08 | C6: L. Ceballos | D6: Added Mast and performance settings to the variables
A7: Version 1.5 | B7: 2016-09-09 | C7: L. Ceballos | D7: Added extended shift, formated for printing
A8: Version 1.6 | B8: 2017-01-25 | C8: C. Whilton | D8: Charlie took over and amended the calculator creating a new DRAFT
A9: Version 1.7 | B9: 2017-01-27 | C9: C. Whilton | D9: Added functionality to all inputs.
A10: Version 1.8 | B10: 2017-03-07 | C10: C. Whilton | D10: Added HIP functionality and Cab heater option.
A11: Version 1.9 | B11: 2017-06-26 | C11: C. Whilton | D11: Changed duty cycles
A12: Version 1.10 | B12: 2017-07-13 | C12: L.Ceballos | D12: Revised 'calculator' cell C9 to force selection of appropriate battery.
A13: Version 1.11 | B13: 2017-09-27 | C13: C. Whilton | D13: Included additional test data for J5.5XN6
A14: Version 1.12 | B14: 2017-10-24 | C14: L. Ceballos | D14: Luis took overa and re-adjusted all the functions mirroring the calculator to start including translation and modified the design in line with other calculations created in the past
A15: Version 1.13 | B15: 2017-10-25 | C15: L. Ceballos | D15: Modified functions to allow translation up to attachments.
A16: Version 1.14 | B16: 2017-10-26 | C16: L. Ceballos | D16: Modified most of the other functions to allow translation.
A17: Version 1.15 | B17: 2017-10-27 | C17: L. Ceballos | D17: Finalised functions, re-formated, included disclaimer at the bottom and finalised linkage to translations, finalised formating matrix and included it on the right side
D25: NOTES
D26: % truck utilisation
D27: Disclaimer

Sheet Variables (hidden)
A1: Battery | B1: V | C1: Ah | D1: watt hours | E1: kWh
A2: 24V735Ah | B2: 24 | C2: 735 | D2: =B2*C2 -> 17640 | E2: =D2/1000 -> 17.64
A3: 24V875Ah | B3: 24 | C3: 875 | D3: =B3*C3 -> 21000 | E3: =D3/1000 -> 21
A4: 24V840Ah | B4: 24 | C4: 840 | D4: 20160 | E4: 20.16
A5: 24V1000Ah | B5: 24 | C5: 1000 | D5: 24000 | E5: 24
A6: 48V420Ah | B6: 48 | C6: 420 | D6: 20160 | E6: 20.16
A7: 48V460Ah | B7: 48 | C7: 460 | D7: 22080 | E7: 22.08
A8: 48V500Ah | B8: 48 | C8: 500 | D8: 24000 | E8: 24
A9: 48V575Ah | B9: 48 | C9: 575 | D9: 27600 | E9: 27.6
A10: 48V625Ah | B10: 48 | C10: 625 | D10: 30000 | E10: 30
A11: 48V690Ah | B11: 48 | C11: 690 | D11: 33120 | E11: 33.12
A12: 48V750Ah | B12: 48 | C12: 750 | D12: 36000 | E12: 36
A13: 80V560Ah | B13: 80 | C13: 560 | D13: 44800 | E13: 44.8
A14: 80V620Ah | B14: 80 | C14: 620 | D14: 49600 | E14: 49.6
A15: 80V700Ah | B15: 80 | C15: 700 | D15: 56000 | E15: 56
A16: 80V750Ah | B16: 80 | C16: 750 | D16: 60000 | E16: 60
A17: 80V775Ah | B17: 80 | C17: 775 | D17: 62000 | E17: 62
A18: 80V840Ah | B18: 80 | C18: 840 | D18: 67200 | E18: 67.2
A19: 80V930Ah | B19: 80 | C19: 930 | D19: 74400 | E19: 74.4
A20: ND48V595Ah | B20: 48 | C20: 595 | D20: 28560 | E20: 28.56
A21: ND48V625Ah | B21: 48 | C21: 625 | D21: 30000 | E21: 30
A22: ND48V690Ah | B22: 48 | C22: 690 | D22: 33120 | E22: 33.12
A23: ND48V700Ah | B23: 48 | C23: 700 | D23: 33600 | E23: 33.6
A24: ND48V750Ah | B24: 48 | C24: 750 | D24: 36000 | E24: 36
A25: ND48V900Ah | B25: 48 | C25: 900 | D25: 43200 | E25: 43.2
D27: Description
A29: Attachment
A30: Clamp / Rotator | B30: 0.1 | D30: Truck uses a heavy attachment that influence its consumption
A31: No | B31: 0 | D31: Truck uses the forks
A33: Cold Store
A34: Yes
A35: No
A38: Cold store | D38: Truck works in cold store increasing the battery discharge rate
A39: Chilled store | B39: 0.25 | D39: 75% available battery
A40: Sub zero freezer | B40: 0.5 | D40: 50% available battery
A41: No | B41: 0 | D41: Full Battery
A43: Utilisation | B43: 0.1 | D43: Driver spends 10% of the time driving and 60% of the time not driving
B44: 0.2 | D44: Driver spends 20% of the time driving and 60% of the time not driving
B45: 0.3 | D45: Driver spends 30% of the time driving and 60% of the time not driving
B46: 0.4 | D46: Driver spends 40% of the time driving and 60% of the time not driving
B47: 0.5 | D47: Driver spends 50% of the time driving and 50% of the time not driving
B48: 0.6 | D48: Driver spends 60% of the time driving and 40% of the time not driving
B49: 0.7 | D49: Driver spends 70% of the time driving and 30% of the time not driving
B50: 0.8 | D50: Driver spends 80% of the time driving and 20% of the time not driving
B51: 0.9 | D51: Driver spends 90% of the time driving and 10% of the time not driving
A53: Battery discharge | B53: 0.8 | D53: Truck works until there's 20% of battery left
A55: Ramp
A56: Yes
A57: No
A59: Length
A60: 15m | B60: 0.05
A61: 12m | B61: 0.04
A62: 9m | B62: 0.03
A63: 6m | B63: 0.02
A64: 3m | B64: 0.01
A67: Frequency
A68: Continuous | B68: 0.05
A69: Sometimes | B69: 0.03
A70: Rarely | B70: 0.01
A73: Gradient
A74: 0.15 | B74: 0.05
A75: 0.1 | B75: 0.03
A76: 0.05 | B76: 0.01
A79: Side shift/fork posit.
A80: Side Shift & Fork Positioner | B80: 0.02
A81: Side shift | B81: 0.01
A82: No | B82: 0
A85: Battery Degradation over time. | B85: 0.15 | C85: Discuss with batt mfgr
A87: Mast Type
A88: 2 LFL | B88: 0
A89: 2 FFL | B89: 0
A90: 3 FFL | B90: 0.08
A92: Aux Electrics, Lights etc.… | B92: 0.3kW
A93: Yes | B93: 0.3 | C93: kW, Based on 6 hr operational shift.
A94: No | B94: 0
A96: Cab Heater
A97: Yes
A98: No

Sheet Light-Medium-Heavy Duty (hidden)
B1: Application Matrix
D2: What is weight of loads are Handled?
D3: ='Application Factors'!C7 -> Generally Light Loads | E3: ='Application Factors'!C8 -> Light to Medium Loads | F3: ='Application Factors'!C9 -> Capacity Loads
D4: ='Application Factors'!D7 -> Generally less than 50% capacity occasional capacity loads | E4: ='Application Factors'!D8 -> Generally less than 75% capacity occasional capacity loads | F4: ='Application Factors'!D9 -> Often Handling loads at or close to capacity
A5: How much Hydraulic Work? | B5: ='Application Factors'!C11 -> Generally Stacking and Loading - signficantly more travel than lifting | C5: ='Application Factors'!D11 -> Ground Handling and stacking - Lifts below 3m | D5: Very Light Duty OR Light Duty | E5: Light Duty Or Medium Duty | F5: Medium Duty Or Heavy Duty
B6: ='Application Factors'!C12 -> Stacking and loading or unloading racking with similar amounts of travel and hydraulic work | C6: ='Application Factors'!D12 -> Most Lifts below 3 m but with occasional higher lifts | D6: Light Duty Or Medium Duty | E6: Medium Duty | F6: Heavy Duty | H6: ORIGINAL
B7: ='Application Factors'!C13 -> Stacking and loading or unloading with significant time handling loads at height | C7: ='Application Factors'!C15 -> Or Forklift Operating with clamping attachment or rotator | D7: Medium Duty | E7: Medium Duty Or Heavy Duty | F7: Heavy Duty
B9: APPLICATION MATRIX
B10: Choose duty cycle from the matrix criterea and select result in the calculator | D10: WHAT LOADS ARE HANDLED?
D11: ='Application Factors'!C7 -> Generally Light Loads | E11: ='Application Factors'!C8 -> Light to Medium Loads | F11: ='Application Factors'!C9 -> Capacity Loads
D12: ='Application Factors'!D7 -> Generally less than 50% capacity occasional capacity loads | E12: ='Application Factors'!D8 -> Generally less than 75% capacity occasional capacity loads | F12: ='Application Factors'!D9 -> Often Handling loads at or close to capacity
B13: TRAVEL Vs. HYDRAULICS OPERATION?
B14: ='Application Factors'!C11 -> Generally Stacking and Loading - signficantly more travel than lifting | C14: ='Application Factors'!D11 -> Ground Handling and stacking - Lifts below 3m | D14: LIGHT DUTY | E14: MEDIUM DUTY | F14: HEAVY DUTY
B15: ='Application Factors'!C12 -> Stacking and loading or unloading racking with similar amounts of travel and hydraulic work | C15: ='Application Factors'!D12 -> Most Lifts below 3 m but with occasional higher lifts | D15: MEDIUM DUTY | E15: HEAVY DUTY | F15: INTENSIVE DUTY | H15: REVISED
B16: ='Application Factors'!C13 -> Stacking and loading or unloading with significant time handling loads at height | C16: ='Application Factors'!D12 -> Most Lifts below 3 m but with occasional higher lifts | D16: HEAVY DUTY | E16: INTENSIVE DUTY | F16: INTENSIVE DUTY

Sheet Application Factors (hidden)
A1: Strawman of Factors to be applied to the Calculated Battery Autonomy based on Possible Consumption* and Available Battery Capacity **
B3: Factor to be Applied | C3: Where Used | D3: Description to assist selection | E3: Suggested Factor to be Applied | F3: Reasoning | G3: Validation Needed and Completed
A5: 1 | B5: % of shift time where truck is operated (%) | C5: Direct estimate from Application Survey entered via input sheet | E5: Direct % applied to increase operating time | F5: Neglegable consumption when truck not operating | G5: Probably not required
A7: 2 | B7: Average Loads Carried (incorporated into Light Medium Heavy Matrix) | C7: Generally Light Loads | D7: Generally less than 50% capacity occasional capacity loads | E7: decrease possible consumption by 25% | F7: Lower GVW and hydraulic loads than are seen on VDI2198 (60 cycle) | G7: Yes
C8: Light to Medium Loads | D8: Generally less than 75% capacity occasional capacity loads | E8: decrease possible consumption by 15% | F8: Lower GVW and hydraulic loads than are seen on VDI2198 (60 cycle) | G8: Yes
C9: Capacity Loads | D9: Often Handling loads at or close to capacity | E9: No change in prediction | F9: Similar loads to VDI2198 (60 cycle) | G9: Yes
A11: 3 | B11: Hydraulic Work (incorporated into Light Medium Heavy Matrix) | C11: Generally Stacking and Loading - signficantly more travel than lifting | D11: Ground Handling and stacking - Lifts below 3m | E11: decrease possible consumption by 10% | F11: Lower hydraulic loads than are seen on VDI2198 (60 cycle) | G11: Yes
C12: Stacking and loading or unloading racking with similar amounts of travel and hydraulic work | D12: Most Lifts below 3 m but with occasional higher lifts | E12: No change in prediction | F12: Similar loads to VDI2198 (60 cycle) | G12: Yes | J12: REFINE FACTORS
C13: Stacking and loading or unloading with significant time handling loads at height | D13: Signficant High Lifting | E13: increase possible consumption by 20% | F13: Higher hydraulic loads than are seen on VDI2198 (60 cycle) | G13: Yes
C14: Forklift Operating with non clamping attachment, Fork Positionner, | E14: No change in prediction | F14: Similar loads to VDI2198 (60 cycle) | G14: Probably not required as attachment usage is low
C15: Or Forklift Operating with clamping attachment or rotator | D15: Operating with Appliance Clamp, Bail Clamp, Paper Roll Clamp | E15: increase possible consumption by 20% | F15: Higher hydraulic loads than are seen on VDI2198 (60 cycle) | G15: Yes
A17: 4 | B17: Ramps | C17: Short slight ramps occasionally travelled | D17: 5-10%, 5-10 meters long | E17: increase possible consumption by 5% | F17: More tractive work than VDI2198 (60 cycle) | G17: Impact could be calculated from consumption data on ramp
C18: Short slight ramps travelled frequently, or steeper ramps inc loading ramps | D18: Portable loading ramps and other ramps above 10% occasionally used | E18: increase possible consumption by 15% | F18: More tractive work than VDI2198 (60 cycle) | G18: Impact could be calculated from consumption data on ramp
C19: Significant Ramp work | D19: Portable loading ramps and those above 10%, travelled frequently | E19: increase possible consumption by 25% | F19: More tractive work than VDI2198 (60 cycle) | G19: Impact could be calculated from consumption data on ramp
A21: 5 | B21: Operating Temperature Factors | C21: Cold Store | D21: Operation in cold store for greater than 20% of operating time | E21: Decrease available battery capacity by 20% | F21: Battery efficiency diminished at lower temperatures | G21: Midac could validate?
C22: High Ambient Temperatures | D22: Intensive operation likely at moderate ambients above 20C | E22: Decrease available battery capacity by 15% | F22: Battery efficiency diminished at higher battery temperatures | G22: Midac could validate?
C23: Intensive at Very High Ambient Temperatures | D23: Intensive operation likely at moderate ambients above 30C | E23: Decrease available battery capacity by 25% | F23: Battery efficiency signficantly diminished at higher battery temperatures | G23: Midac could validate?
A25: 6 | B25: Battery Ageing | C25: Batteries Well Maintained | D25: Expectation of 5 year batttery life | E25: Decrease available battery capacity by 10% | F25: Direct factor applied to accommodate required battery performance at end of battery life | G25: Midac could validate?
C26: Batteries generally well maintained, occasional lapses | D26: Expectation of 5 year battery life with | E26: Decrease available battery capacity by 20% | F26: Direct factor applied to accommodate required battery performance at end of battery life | G26: Midac could validate?
C27: Battery maintenance unknown or uncertain | D27: Expectation of 5 year battery life with | E27: Decrease available battery capacity by 30% | F27: Direct factor applied to accommodate required battery performance at end of battery life | G27: Midac could validate?
B29: * Possible Consumption can increase up to the max power usable by the truck series, based on application. A lower capacity machine in the series could see signficantly increased consumption due to these factors, wheras highest capacity machine will see smaller increments, as motors and controllers cannot utilise/consume much more power.
B31: ** Available Battery Capacity can be impacted by temperature and by battery degradation (loss of capacity) over time. This effect is unaffected by machine capacity.

Sheet Validation data (hidden)
A1: Duty Cycle | B1: 0.5 | F1: shift letter
A2: Light Duty | B2: 1 | C2: 1 | D2: A | E2: =Calculator!C12-0.5 -> -0.5 | F2: =VLOOKUP(E2,'Validation data'!B2:D48,3,FALSE) -> 
A3: Medium Duty | B3: 1.5 | C3: 1.5 | D3: B
A4: Heavy Duty | B4: 2 | C4: 2 | D4: CC
A5: Intensive Duty | B5: 2.5 | C5: 2.5 | D5: D
B6: 3 | C6: 3 | D6: E
B7: 3.5 | C7: 3.5 | D7: F
B8: 4 | C8: 4 | D8: G
B9: 4.5 | C9: 4.5 | D9: H
B10: 5 | C10: 5 | D10: I
B11: 5.5 | C11: 5.5 | D11: J
B12: 6 | C12: 6 | D12: K
B13: 6.5 | C13: 6.5 | D13: L
B14: 7 | C14: 7 | D14: M
B15: 7.5 | C15: 7.5 | D15: N
B16: 8 | C16: 8 | D16: O
B17: 8.5 | C17: 8.5 | D17: P
B18: 9 | C18: 9 | D18: Q
B19: 9.5 | C19: 9.5 | D19: RR
B20: 10 | C20: 10 | D20: S
B21: 10.5 | C21: 10.5 | D21: T
B22: 11 | C22: 11 | D22: U
B23: 11.5 | C23: 11.5 | D23: V
B24: 12 | C24: 12 | D24: W
B25: 12.5 | C25: 12.5 | D25: X
B26: 13 | C26: 13 | D26: Y
B27: 13.5 | C27: 13.5 | D27: Z
B28: 14 | C28: 14 | D28: AA
B29: 14.5 | C29: 14.5 | D29: AB
B30: 15 | C30: 15 | D30: AC
B31: 15.5 | C31: 15.5 | D31: AD
B32: 16 | C32: 16 | D32: AE
B33: 16.5 | C33: 16.5 | D33: AF
B34: 17 | C34: 17 | D34: AG
B35: 17.5 | C35: 17.5 | D35: AH
B36: 18 | C36: 18 | D36: AI
B37: 18.5 | D37: AJ
B38: 19 | D38: AK
B39: 19.5 | D39: AL
B40: 20 | D40: AM
B41: 20.5 | D41: AN
B42: 21 | D42: AO
B43: 21.5 | D43: AP
B44: 22 | D44: AQ
B45: 22.5 | D45: AR
B46: 23 | D46: AS
B47: 23.5 | D47: AT
B48: 24 | D48: AU

Sheet PRJ2106 (hidden)
A1: Translations
A3: English
A4: Deutsch
A5: Français
A6: Español
A7: Italiano
